NUMERO_MANDATO;RIGA_MANDATO;QUIET;IMPORTO_RIGA;IMPORTO_MANDATO;BENEFICIARIO;CIG;TITOLO_PAGAMENTO;DATA_MANDATO;CAPITOLO;ARTICOLO;NUMERO_IMPEGNO;TITOLO;DESCR_TITOLO;LIVELLO_II;DESCR_LIVELLO_II;LIVELLO_III;DESCR_LIVELLO_III;LIVELLO_IV;DESCR_LIVELLO_IV;LIVELLO_V;DESCR_LIVELLO_V;DATA_PAG_EFF;
741;1;0;"3.656,34";"3.656,34";COOPERATIVA SOCIALE EOS;Z8E28A710B;SALDO Fatt.n. 64/PA  del 15/06/2020 SALDO LAVORI CIMITERIALI;06-07-2020;413;1;355;1;Spese correnti;3;Acquisto di beni e servizi;2;Acquisto di servizi;9;Manutenzione ordinaria e riparazioni;11;Manutenzione ordinaria e riparazioni di altri beni materiali;06-07-2020;
742;1;0;"3.710,85";"3.710,85";CASA DI RIPOSO 'AITA'; ;SALDO Fatt.n. 229/B  del 23/06/2020 SERVIZIO DI A.D. - MAGGIO 2020;06-07-2020;562;1;69;1;Spese correnti;3;Acquisto di beni e servizi;2;Acquisto di servizi;15;Contratti di servizio pubblico;9;Contratti di servizio di assistenza sociale domiciliare;06-07-2020;
743;1;0;"28,06";"595,36";SICURITALIA IVRI S.P.A.;Z3827208DE;SALDO Fatt.n. 9117007164  del 30/06/2020 SERVIZI ISPETTIVI- GIUGNO 2020;06-07-2020;310;0;93;1;Spese correnti;3;Acquisto di beni e servizi;2;Acquisto di servizi;5;Utenze e canoni;999;Utenze e canoni per altri servizi n.a.c.;06-07-2020;
743;2;0;"567,30";"595,36";SICURITALIA IVRI S.P.A.;Z3827208DE;SALDO Fatt.n. 9117006613  del 03/06/2020 SERVIZI ISPETTIVI;06-07-2020;310;0;93;1;Spese correnti;3;Acquisto di beni e servizi;2;Acquisto di servizi;5;Utenze e canoni;999;Utenze e canoni per altri servizi n.a.c.;06-07-2020;
744;1;0;"413,54";"413,54";FARMACIA AGOSTINI DR. GIOVANNA; ;SALDO Fatt.n. 19 / PA  del 15/06/2020 ACQUISTO BENI PER EMERGENZA ALIMENTARE;06-07-2020;563;0;124;1;Spese correnti;3;Acquisto di beni e servizi;1;Acquisto di beni;2;Altri beni di consumo;11;Generi alimentari;06-07-2020;
745;1;0;"1.008,79";"2.304,19";SUPERMERCATO FACCHIN DI FACCHIN A. & S.a.S.; ;SALDO Fatt.n. FPA 18/20  del 30/06/2020 ACQUISTO BENI PER EMERGENZA ALIMENTARE;06-07-2020;563;0;127;1;Spese correnti;3;Acquisto di beni e servizi;1;Acquisto di beni;2;Altri beni di consumo;11;Generi alimentari;06-07-2020;
745;2;0;"1.295,40";"2.304,19";SUPERMERCATO FACCHIN DI FACCHIN A. & S.a.S.; ;SALDO Fatt.n. FPA 16/20  del 22/06/2020 ACQUISTO BENI PER EMERGENZA ALIMENTARE;06-07-2020;563;0;127;1;Spese correnti;3;Acquisto di beni e servizi;1;Acquisto di beni;2;Altri beni di consumo;11;Generi alimentari;06-07-2020;
746;1;0;"694,45";"694,45";KONE SPA;Z11299C38B;SALDO Fatt.n. 0094314705  del 30/06/2020 Fornitura Servizi di Manutenzione;06-07-2020;252;0;427;1;Spese correnti;3;Acquisto di beni e servizi;2;Acquisto di servizi;5;Utenze e canoni;999;Utenze e canoni per altri servizi n.a.c.;06-07-2020;
747;1;0;"730,19";"730,19";Farmacie Piu' SAS - Carinatese; ;SALDO Fatt.n. 25/PA  del 30/06/2020 ACQUISTO BENI PER EMERGENZA ALIMENTARE;06-07-2020;563;0;125;1;Spese correnti;3;Acquisto di beni e servizi;1;Acquisto di beni;2;Altri beni di consumo;11;Generi alimentari;06-07-2020;
748;1;0;"25,81";"25,81";ASCOTRADE S.P.A.;Z342D086E5;SALDO Fatt.n. 782483  del 24/06/2020 FATTURE CONSUMI GAS:16/04-15/06/2020;06-07-2020;71;0;171;1;Spese correnti;3;Acquisto di beni e servizi;2;Acquisto di servizi;5;Utenze e canoni;6;Gas;06-07-2020;
749;1;0;"186,87";"581,17";TIM S.P.A.;ZE429271DF;SALDO Fatt.n. 7X02272669  del 15/06/2020 LINEA TELEFONICA - 4 BIM 2020;06-07-2020;252;0;393;1;Spese correnti;3;Acquisto di beni e servizi;2;Acquisto di servizi;5;Utenze e canoni;999;Utenze e canoni per altri servizi n.a.c.;06-07-2020;
749;2;0;"394,30";"581,17";TIM S.P.A.;ZE429271DF;ACCONTO Fatt.n. 4220420800021708  del 05/06/2020 LINEA TELEFONCIA - 4 BIM 2020;06-07-2020;252;0;393;1;Spese correnti;3;Acquisto di beni e servizi;2;Acquisto di servizi;5;Utenze e canoni;999;Utenze e canoni per altri servizi n.a.c.;06-07-2020;
750;1;0;"534,85";"534,85";TIM S.P.A.;ZE429271DF;SALDO Fatt.n. 4220420800021708  del 05/06/2020 LINEA TELEFONCIA - 4 BIM 2020;06-07-2020;34;0;392;1;Spese correnti;3;Acquisto di beni e servizi;2;Acquisto di servizi;5;Utenze e canoni;999;Utenze e canoni per altri servizi n.a.c.;06-07-2020;
753;1;0;"2.393,64";"2.393,64";ILMA S.R.L.;Z592B583D1;SALDO Fatt.n. P-29  del 26/06/2020 FORNITURA DI UN PALCO IN ALLUMINIO PER MANIFESTAZIONI;13-07-2020;785;0;658;2;Spese in conto capitale;2;Investimenti fissi lordi e acquisto di terreni;1;Beni materiali;10;"Beni immobili di valore culturale, storico ed artistico";8;"Musei, teatri e biblioteche di valore culturale, storico ed artistico";13-07-2020;
754;1;0;"1.126,62";"1.126,62";OLIVETTI S.P.A.;ZC92648F71;ACCONTO Fatt.n. A20020201000025011  del 30/06/2020 CANONE FOTOCOPIATORI;13-07-2020;235;0;510;1;Spese correnti;3;Acquisto di beni e servizi;2;Acquisto di servizi;5;Utenze e canoni;999;Utenze e canoni per altri servizi n.a.c.;13-07-2020;
755;1;0;"835,80";"835,80";OLIVETTI S.P.A.;ZC92648F71;SALDO Fatt.n. A20020201000025011  del 30/06/2020 CANONE FOTOCOPIATORI;13-07-2020;252;0;509;1;Spese correnti;3;Acquisto di beni e servizi;2;Acquisto di servizi;5;Utenze e canoni;999;Utenze e canoni per altri servizi n.a.c.;13-07-2020;
756;1;0;"1.268,80";"1.268,80";ZANINOTTO LUCIO;ZCE2D779CB;SALDO Fatt.n. FATTPA 2_20  del 03/07/2020 AFFIDAMENTO INCARICO ESTERNO DIP. PREVENZIONE;13-07-2020;152;0;198;1;Spese correnti;3;Acquisto di beni e servizi;2;Acquisto di servizi;11;Prestazioni professionali e specialistiche;999;Altre prestazioni professionali e specialistiche n.a.c.;13-07-2020;
757;1;0;"226,05";"226,05";BELLNET INTERNATIONAL S.R.L.;Z752BFBD5F;SALDO Fatt.n. FATTPA 1428_20  del 30/06/2020 TRAFFICO TELEFONICO  - LUGLI0 2020;13-07-2020;34;0;58;1;Spese correnti;3;Acquisto di beni e servizi;2;Acquisto di servizi;5;Utenze e canoni;1;Telefonia fissa;13-07-2020;
758;1;0;"31,66";"31,66";LA IDROFERRAMENTA SRL;Z192700D74;SALDO Fatt.n. 52/PA  del 30/06/2020 ACQUISTO PRODOTTI PER SANIFICAZIONE;13-07-2020;591;0;161;1;Spese correnti;3;Acquisto di beni e servizi;1;Acquisto di beni;2;Altri beni di consumo;999;Altri beni e materiali di consumo n.a.c.;13-07-2020;
759;1;0;"183,00";"183,00";CARROZZERIA CARRON S.R.L.;Z772D3755D;ACCONTO Fatt.n. 356  del 22/06/2020 MANUTENZIONE AUTO COMUNALI;13-07-2020;1078;0;180;2;Spese in conto capitale;2;Investimenti fissi lordi e acquisto di terreni;1;Beni materiali;1;"Mezzi di trasporto ad uso civile, di sicurezza e ordine pubblico";1;Mezzi di trasporto stradali;13-07-2020;
760;1;0;"219,60";"219,60";CARROZZERIA CARRON S.R.L.;Z772D3755D;SALDO Fatt.n. 356  del 22/06/2020 MANUTENZIONE AUTO COMUNALI;13-07-2020;571;1;675;1;Spese correnti;3;Acquisto di beni e servizi;2;Acquisto di servizi;9;Manutenzione ordinaria e riparazioni;1;"Manutenzione ordinaria e riparazioni di mezzi di trasporto ad uso civile, di sicurezza e ordine pubblico";13-07-2020;
761;1;0;"312,90";"312,90";UNA CASA PER L'UOMO - SOCIETA' COOPERATIVA SOCIALE;Z092CFD987;SALDO Fatt.n. FE/0000201  del 30/06/2020 PROGETTO ACCOGLIENZA  - GIUGNO 2020;13-07-2020;559;0;155;1;Spese correnti;3;Acquisto di beni e servizi;2;Acquisto di servizi;99;Altri servizi;999;Altri servizi diversi n.a.c.;13-07-2020;
762;1;0;"1.440,00";"1.440,00";NOIGROUP Coop. Soc. a R.L.;Z5F268727B;SALDO Fatt.n. 421  del 30/06/2020 GESTIONE BIBLIOTECA - GIUGNO 2020;13-07-2020;302;1;553;1;Spese correnti;3;Acquisto di beni e servizi;2;Acquisto di servizi;16;Servizi amministrativi;999;Altre spese per servizi amministrativi;13-07-2020;
763;1;0;"200,00";"200,00";SONDA COOPERATIVA SOCIALE ONLUS; ;SALDO Fatt.n. 193/PA/2020  del 30/06/2020 PRESTAZIONI SOCIALI - GIUGNO 2020;13-07-2020;576;0;84;1;Spese correnti;4;Trasferimenti correnti;2;Trasferimenti correnti a Famiglie;2;Interventi assistenziali;999;Altri assegni e sussidi assistenziali;13-07-2020;
764;1;0;"1.112,10";"1.112,10";NOIGROUP Coop. Soc. a R.L.;ZDE2A28443;SALDO Fatt.n. 422  del 30/06/2020 SERVIZIO AL MUSEO - GIUGNO 2020;13-07-2020;303;0;490;1;Spese correnti;3;Acquisto di beni e servizi;2;Acquisto di servizi;99;Altri servizi;999;Altri servizi diversi n.a.c.;13-07-2020;
765;1;0;"1.781,82";"1.781,82";UNICOOPER SERVIZI S.C.R.L.;ZDB2BDF192;SALDO Fatt.n. 1132  del 30/06/2020 PULIZIA EDIFICI COMUNALI - GIUGNO 2020;13-07-2020;34;2;45;1;Spese correnti;3;Acquisto di beni e servizi;2;Acquisto di servizi;13;Servizi ausiliari per il funzionamento dell'ente;2;Servizi di pulizia e lavanderia;13-07-2020;
766;1;0;"510,00";"510,00";CLINICA VETERINARIA SAN MARTINO;Z1E2C0AEA6;SALDO Fatt.n. 2020/EA/000002  del 09/07/2020 PRESTAZIONI VETERINARIE;13-07-2020;180;0;77;1;Spese correnti;3;Acquisto di beni e servizi;2;Acquisto di servizi;15;Contratti di servizio pubblico;11;Contratti di servizio per la lotta al randagismo;13-07-2020;
767;1;0;"268,40";"268,40";GRUPPO ITQ SRL;ZC02D22A08;SALDO Fatt.n. 8702  del 30/06/2020 MANUTENZIONE STRAORDINARIA SEDE MUNICIPALE;13-07-2020;744;1;175;2;Spese in conto capitale;2;Investimenti fissi lordi e acquisto di terreni;1;Beni materiali;9;Beni immobili;999;Beni immobili n.a.c.;13-07-2020;
768;1;0;"11,00";"11,00";AZIENDA U.L.S.S. N.2  MARCA TREVIGIANA; ;IMPEGNO DI SPESA E LIQUIDAZIONE PER LE PRESTAZIONI EFFETTUATE DAL SERVIZIO VETERINARIO DELLAZIENDA ULSS N. 2 MARCA TREVIGIANA PRESSO IL CANILE SANITARIO - Rich. pagamento n. 20-V10-002269 del 31.05.2020.;13-07-2020;178;5;201;1;Spese correnti;3;Acquisto di beni e servizi;2;Acquisto di servizi;99;Altri servizi;999;Altri servizi diversi n.a.c.;13-07-2020;
769;1;0;"785,58";"785,58";ALBERTON FERRAMENTA E CASALINGHI SNC DI ALBERTON P.& C.;ZF92D64AA7;SALDO Fatt.n. 1/PA  del 26/06/2020 FORNITURA FERRAMENTA;13-07-2020;591;0;190;1;Spese correnti;3;Acquisto di beni e servizi;1;Acquisto di beni;2;Altri beni di consumo;999;Altri beni e materiali di consumo n.a.c.;13-07-2020;
770;1;0;"5.961,21";"5.961,21";AMMINISTRATORI COMUNALI; ;STIPENDI MESE DI: LUGLIO 20;13-07-2020;2;0;1;1;Spese correnti;3;Acquisto di beni e servizi;2;Acquisto di servizi;1;Organi e incarichi istituzionali dell'amministrazione;1;Organi istituzionali dell'amministrazione - Indennità;13-07-2020;
800;1;0;"235,66";"235,66";LA FONTESE DI GIANNI BROLESE & C. S.A.S.;ZC72D7FE3B;SALDO Fatt.n. 380/V  del 09/07/2020 IMPEGNO DI SPESA PER ACQUISTO MATERIALE;14-07-2020;37;0;199;1;Spese correnti;3;Acquisto di beni e servizi;1;Acquisto di beni;2;Altri beni di consumo;1;"Carta, cancelleria e stampati";14-07-2020;
801;1;0;"806,27";"806,27";GREEN TELECOMUNICAZIONI S.P.A.;Z332D86387;SALDO Fatt.n. SE753  del 08/07/2020 FORNITURA DI N. 5 SIM DATI PER CONTROLLO DEI TRANSITI (VARCHI);14-07-2020;746;0;200;2;Spese in conto capitale;2;Investimenti fissi lordi e acquisto di terreni;1;Beni materiali;7;Hardware;999;Hardware n.a.c.;14-07-2020;
805;1;0;"815,21";"815,21";A.S. DI ANDREATTA GIUSEPPE & C. S.R.L.;ZB1282AB4D;ACCONTO Fatt.n. 366  del 31/05/2020 MANUTENZIONE ORDINARIA IMPIANTI ELETTRICI;21-07-2020;601;0;567;1;Spese correnti;3;Acquisto di beni e servizi;2;Acquisto di servizi;15;Contratti di servizio pubblico;15;Contratti di servizio per l'illuminazione pubblica;21-07-2020;
806;1;0;"528,36";"528,36";A.S. DI ANDREATTA GIUSEPPE & C. S.R.L.;ZB1282AB4D;SALDO Fatt.n. 366  del 31/05/2020 MANUTENZIONE ORDINARIA IMPIANTI ELETTRICI;21-07-2020;601;0;191;1;Spese correnti;3;Acquisto di beni e servizi;2;Acquisto di servizi;15;Contratti di servizio pubblico;15;Contratti di servizio per l'illuminazione pubblica;21-07-2020;
807;1;0;"24,40";"24,40";GREEN TELECOMUNICAZIONI S.P.A.;ZD82DA33A4;SALDO Fatt.n. E9503  del 12/06/2020 SERVIZI DI TELEFONIA;21-07-2020;71;0;221;1;Spese correnti;3;Acquisto di beni e servizi;2;Acquisto di servizi;5;Utenze e canoni;1;Telefonia fissa;21-07-2020;
808;1;0;"35,00";"35,00";NICOPNEUS DI NICOLINI MICHELE;Z942DAD3C2;SALDO Fatt.n. 101/SZPO  del 30/06/2020 SOSTITUZIONE PNEUMATICI TRATTORINO TAGLIAERBA;21-07-2020;589;1;225;1;Spese correnti;3;Acquisto di beni e servizi;2;Acquisto di servizi;9;Manutenzione ordinaria e riparazioni;5;Manutenzione ordinaria e riparazioni di attrezzature;21-07-2020;
809;1;0;"751,76";"751,76";UNICOOPER SERVIZI S.C.R.L.;ZA02DAD508;SALDO Fatt.n. 489  del 31/03/2020 PULIZIE CENTRO "LA ROGGIA" - MARZO 2020;21-07-2020;561;3;224;1;Spese correnti;3;Acquisto di beni e servizi;2;Acquisto di servizi;13;Servizi ausiliari per il funzionamento dell'ente;2;Servizi di pulizia e lavanderia;21-07-2020;
810;1;0;"59,84";"7.106,99";PLT PUREGREEN;7134285639;SALDO Fatt.n. 20200040002058  del 10/06/2020 FORNITURA ENERGIA ELETTRICA IP - MAGGIO 2020;21-07-2020;600;0;216;1;Spese correnti;3;Acquisto di beni e servizi;2;Acquisto di servizi;5;Utenze e canoni;4;Energia elettrica;21-07-2020;
810;2;0;"136,84";"7.106,99";PLT PUREGREEN;7134285639;SALDO Fatt.n. 20200040002048  del 10/06/2020 FORNITURA ENERGIA ELETTRICA IP - MAGGIO 2020;21-07-2020;600;0;216;1;Spese correnti;3;Acquisto di beni e servizi;2;Acquisto di servizi;5;Utenze e canoni;4;Energia elettrica;21-07-2020;
810;3;0;"137,25";"7.106,99";PLT PUREGREEN;7134285639;SALDO Fatt.n. 20200040002052  del 10/06/2020 FORNITURA ENERGIA ELETTRICA IP - MAGGIO 2020;21-07-2020;600;0;216;1;Spese correnti;3;Acquisto di beni e servizi;2;Acquisto di servizi;5;Utenze e canoni;4;Energia elettrica;21-07-2020;
810;4;0;"6.773,06";"7.106,99";PLT PUREGREEN;7134285639;SALDO Fatt.n. 20200040002053  del 10/06/2020 FORNITURA ENERGIA ELETTRICA IP - MAGGIO 2020;21-07-2020;600;0;216;1;Spese correnti;3;Acquisto di beni e servizi;2;Acquisto di servizi;5;Utenze e canoni;4;Energia elettrica;21-07-2020;
811;1;0;"44,88";"174,42";PLT PUREGREEN;7134285639;SALDO Fatt.n. 20200040002051  del 10/06/2020 FORNITURA ENERGIA ELETTRICA CIMITERO - MAGGIO 2020;21-07-2020;413;0;211;1;Spese correnti;3;Acquisto di beni e servizi;2;Acquisto di servizi;5;Utenze e canoni;4;Energia elettrica;21-07-2020;
811;2;0;"47,53";"174,42";PLT PUREGREEN;7134285639;SALDO Fatt.n. 20200040002060  del 10/06/2020  FORNITURA ENERGIA ELETTRICA CIMITERO - MAGGIO 2020;21-07-2020;413;0;211;1;Spese correnti;3;Acquisto di beni e servizi;2;Acquisto di servizi;5;Utenze e canoni;4;Energia elettrica;21-07-2020;
811;3;0;"82,01";"174,42";PLT PUREGREEN;7134285639;SALDO Fatt.n. 20200040002055  del 10/06/2020 FORNITURA ENERGIA ELETTRICA CIMITERO - MAGGIO 2020;21-07-2020;413;0;211;1;Spese correnti;3;Acquisto di beni e servizi;2;Acquisto di servizi;5;Utenze e canoni;4;Energia elettrica;21-07-2020;
812;1;0;"39,91";"111,60";PLT PUREGREEN;7134285639;SALDO Fatt.n. 20200040002057  del 10/06/2020 FORNITURA ENERGIA ELETTRICA SCUOLE - MAGGIO 2020;21-07-2020;235;0;209;1;Spese correnti;3;Acquisto di beni e servizi;2;Acquisto di servizi;5;Utenze e canoni;4;Energia elettrica;21-07-2020;
812;2;0;"71,69";"111,60";PLT PUREGREEN;7134285639;SALDO Fatt.n. 20200040002061  del 10/06/2020 FORNITURA ENERGIA ELETTRICA SCUOLE - MAGGIO 2020;21-07-2020;235;0;209;1;Spese correnti;3;Acquisto di beni e servizi;2;Acquisto di servizi;5;Utenze e canoni;4;Energia elettrica;21-07-2020;
813;1;0;"227,51";"227,51";PLT PUREGREEN;7134285639;SALDO Fatt.n. 20200040002059  del 10/06/2020 FORNITURA ENERGIA ELETTRICA SCUOLE - MAGGIO 2020;21-07-2020;252;0;210;1;Spese correnti;3;Acquisto di beni e servizi;2;Acquisto di servizi;5;Utenze e canoni;4;Energia elettrica;21-07-2020;
814;1;0;"76,02";"76,02";PLT PUREGREEN;7134285639;SALDO Fatt.n. 20200040002050  del 10/06/2020 FORNITURA ENERGIA ELETTRICA MAGAZZINO - MAGGIO 2020;21-07-2020;71;0;208;1;Spese correnti;3;Acquisto di beni e servizi;2;Acquisto di servizi;5;Utenze e canoni;4;Energia elettrica;21-07-2020;
815;1;0;"130,81";"130,81";PLT PUREGREEN;7134285639;SALDO Fatt.n. 20200040002049  del 10/06/2020 FORNITURA ENERGIA ELETTRICA - MAGGIO 2020;21-07-2020;530;0;214;1;Spese correnti;3;Acquisto di beni e servizi;2;Acquisto di servizi;5;Utenze e canoni;4;Energia elettrica;21-07-2020;
816;1;0;"47,33";"47,33";PLT PUREGREEN;7134285639;SALDO Fatt.n. 20200040002054  del 10/06/2020 FORNITURA ENERGIA ELETTRICA CENTRO CULTURALE - MAGGIO 2020;21-07-2020;311;0;213;1;Spese correnti;3;Acquisto di beni e servizi;2;Acquisto di servizi;5;Utenze e canoni;4;Energia elettrica;21-07-2020;
817;1;0;"359,17";"359,17";PLT PUREGREEN;7134285639;SALDO Fatt.n. 20200040002056  del 10/06/2020 FORNITURA ENERGIA ELETTRICA MUNICIPIO - MAGGIO 2020;21-07-2020;34;0;207;1;Spese correnti;3;Acquisto di beni e servizi;2;Acquisto di servizi;5;Utenze e canoni;4;Energia elettrica;21-07-2020;
818;1;0;"202,53";"202,53";PLT PUREGREEN;7134285639;SALDO Fatt.n. 20200040002062  del 10/06/2020 FORNITURA ENERGIA ELETTRICA CENTRO POLIVALENTE - MAGGIO 2020;21-07-2020;561;2;215;1;Spese correnti;3;Acquisto di beni e servizi;2;Acquisto di servizi;5;Utenze e canoni;4;Energia elettrica;21-07-2020;
819;1;0;"44,87";"341,94";PLT PUREGREEN;7134285639;SALDO Fatt.n. 20200040002448  del 10/07/2020 FORNITURA ENERGIA ELETTRICA SCUOLE - GIUGNO 2020;22-07-2020;235;0;209;1;Spese correnti;3;Acquisto di beni e servizi;2;Acquisto di servizi;5;Utenze e canoni;4;Energia elettrica;22-07-2020;
819;2;0;"69,82";"341,94";PLT PUREGREEN;7134285639;SALDO Fatt.n. 20200040002452  del 10/07/2020 FORNITURA ENERGIA ELETTRICA SCUOLE  - GIUGNO 2020;22-07-2020;235;0;209;1;Spese correnti;3;Acquisto di beni e servizi;2;Acquisto di servizi;5;Utenze e canoni;4;Energia elettrica;22-07-2020;
819;3;0;"227,25";"341,94";PLT PUREGREEN;7134285639;SALDO Fatt.n. 20200040002450  del 10/07/2020 FORNITURA ENERGIA ELETTRICA SCUOLE - GIUGNO 2020;22-07-2020;235;0;209;1;Spese correnti;3;Acquisto di beni e servizi;2;Acquisto di servizi;5;Utenze e canoni;4;Energia elettrica;22-07-2020;
820;1;0;"75,23";"75,23";PLT PUREGREEN;7134285639;SALDO Fatt.n. 20200040002441  del 10/07/2020 FORNITURA ENERGIA ELETTRICA MAGAZZINO - GIUGNO 2020;22-07-2020;71;0;208;1;Spese correnti;3;Acquisto di beni e servizi;2;Acquisto di servizi;5;Utenze e canoni;4;Energia elettrica;22-07-2020;
821;1;0;"400,73";"400,73";PLT PUREGREEN;7134285639;SALDO Fatt.n. 20200040002447  del 10/07/2020 FORNITURA ENERGIA ELETTRICA MUNICIPIO - GIUGNO 2020;22-07-2020;34;0;207;1;Spese correnti;3;Acquisto di beni e servizi;2;Acquisto di servizi;5;Utenze e canoni;4;Energia elettrica;22-07-2020;
822;1;0;"116,94";"6.033,26";PLT PUREGREEN;7134285639;SALDO Fatt.n. 20200040002439  del 10/07/2020 FORNITURA ENERGIA ELETTRICA I.P. - GIUGNO 2020;22-07-2020;600;0;216;1;Spese correnti;3;Acquisto di beni e servizi;2;Acquisto di servizi;5;Utenze e canoni;4;Energia elettrica;22-07-2020;
822;2;0;"5.916,32";"6.033,26";PLT PUREGREEN;7134285639;SALDO Fatt.n. 20200040002444  del 10/07/2020 FORNITURA ENERGIA ELETTRICA I.P. - GIUGNO 2020;22-07-2020;600;0;216;1;Spese correnti;3;Acquisto di beni e servizi;2;Acquisto di servizi;5;Utenze e canoni;4;Energia elettrica;22-07-2020;
823;1;0;"133,16";"301,41";PLT PUREGREEN;7134285639;SALDO Fatt.n. 20200040002443  del 10/07/2020 FORNITURA ENERGIA ELETTRICA STADIO - GIUGNO 2020;22-07-2020;530;0;214;1;Spese correnti;3;Acquisto di beni e servizi;2;Acquisto di servizi;5;Utenze e canoni;4;Energia elettrica;22-07-2020;
823;2;0;"168,25";"301,41";PLT PUREGREEN;7134285639;SALDO Fatt.n. 20200040002440  del 10/07/2020 FORNITURA ENERGIA ELETTRICA PALESTRA - GIUGNO 2020;22-07-2020;530;0;214;1;Spese correnti;3;Acquisto di beni e servizi;2;Acquisto di servizi;5;Utenze e canoni;4;Energia elettrica;22-07-2020;
824;1;0;"45,04";"228,92";PLT PUREGREEN;7134285639;SALDO Fatt.n. 20200040002442  del 10/07/2020 FORNITURA ENERGIA ELETTRICA CIMITERO - GIUGNO 2020;22-07-2020;413;0;211;1;Spese correnti;3;Acquisto di beni e servizi;2;Acquisto di servizi;5;Utenze e canoni;4;Energia elettrica;22-07-2020;
824;2;0;"47,07";"228,92";PLT PUREGREEN;7134285639;SALDO Fatt.n. 20200040002451  del 10/07/2020 FORNITURA ENERGIA ELETTRICA CIMITERO - GIUGNO 2020;22-07-2020;413;0;211;1;Spese correnti;3;Acquisto di beni e servizi;2;Acquisto di servizi;5;Utenze e canoni;4;Energia elettrica;22-07-2020;
824;3;0;"58,27";"228,92";PLT PUREGREEN;7134285639;SALDO Fatt.n. 20200040002449  del 10/07/2020 FORNITURA ENERGIA ELETTRICA CIMITERO - GIUGNO 2020;22-07-2020;413;0;211;1;Spese correnti;3;Acquisto di beni e servizi;2;Acquisto di servizi;5;Utenze e canoni;4;Energia elettrica;22-07-2020;
824;4;0;"78,54";"228,92";PLT PUREGREEN;7134285639;SALDO Fatt.n. 20200040002446  del 10/07/2020 FORNITURA ENERGIA ELETTRICA CIMITERO - GIUGNO 2020;22-07-2020;413;0;211;1;Spese correnti;3;Acquisto di beni e servizi;2;Acquisto di servizi;5;Utenze e canoni;4;Energia elettrica;22-07-2020;
825;1;0;"8.478,75";"8.478,75";COMUNICA SOCIETA' COOPERATIVA ONLUS;Z6A2D62321;SALDO Fatt.n. 2/37  del 21/07/2020 CENTRI ESTIVI 2020;22-07-2020;295;2;193;1;Spese correnti;3;Acquisto di beni e servizi;2;Acquisto di servizi;15;Contratti di servizio pubblico;999;Altre spese per contratti di servizio pubblico;22-07-2020;
826;1;0;"743,75";"743,75";FARMACIA AGOSTINI DR. GIOVANNA; ;SALDO Fatt.n. 24 / PA  del 03/07/2020 ACQUISTO BENI PER EMERGENZA SANITARIA;22-07-2020;563;0;124;1;Spese correnti;3;Acquisto di beni e servizi;1;Acquisto di beni;2;Altri beni di consumo;11;Generi alimentari;22-07-2020;
827;1;0;"500,00";"500,00";SICURITALIA IVRI S.P.A.;Z3827208DE;ACCONTO Fatt.n. 9117008015  del 13/07/2020 SERVIZIO SICUREZZA ED. COMUNALI - GIUGNO 2020;22-07-2020;561;2;169;1;Spese correnti;3;Acquisto di beni e servizi;2;Acquisto di servizi;5;Utenze e canoni;999;Utenze e canoni per altri servizi n.a.c.;22-07-2020;
828;1;0;"67,30";"67,30";SICURITALIA IVRI S.P.A.;Z3827208DE;SALDO Fatt.n. 9117008015  del 13/07/2020 SERVIZIO SICUREZZA ED. COMUNALI - GIUGNO 2020;22-07-2020;252;0;91;1;Spese correnti;3;Acquisto di beni e servizi;2;Acquisto di servizi;5;Utenze e canoni;999;Utenze e canoni per altri servizi n.a.c.;22-07-2020;
829;1;0;"46,54";"46,54";PLT PUREGREEN;7134285639;SALDO Fatt.n. 20200040002445  del 10/07/2020 FORNITURA ENERGIA ELETTRICA CENTRO CULTURALE - GIUGNO 2020;22-07-2020;311;0;213;1;Spese correnti;3;Acquisto di beni e servizi;2;Acquisto di servizi;5;Utenze e canoni;4;Energia elettrica;22-07-2020;
830;1;0;"369,67";"369,67";PLT PUREGREEN;7134285639;SALDO Fatt.n. 20200040002453  del 10/07/2020 FORNITURA ENERGIA ELETTRICA CENTRO SOCIALE - GIUGNO 2020;22-07-2020;561;2;215;1;Spese correnti;3;Acquisto di beni e servizi;2;Acquisto di servizi;5;Utenze e canoni;4;Energia elettrica;22-07-2020;
831;1;0;"3.416,00";"3.416,00";IDEA GIARDINO SNC;Z192CEDA04;SALDO Fatt.n. 36  del 30/06/2020 MANUTENZIONE AREE VERDI;22-07-2020;512;0;229;1;Spese correnti;3;Acquisto di beni e servizi;2;Acquisto di servizi;99;Altri servizi;9;Acquisto di sevizi per verde e arredo urbano;22-07-2020;
832;1;0;"5.582,72";"5.582,72";PESCAROLLO ROBERTO;Z862B5B920;SALDO Fatt.n. 23/E  del 20/07/2020 MANUTENZIONE STRAORDINARIA ED. COMUNALI;22-07-2020;745;0;35;2;Spese in conto capitale;2;Investimenti fissi lordi e acquisto di terreni;1;Beni materiali;9;Beni immobili;999;Beni immobili n.a.c.;22-07-2020;
833;1;0;"5.582,72";"5.582,72";PATRON ALESSANDRO;Z862B5B920;SALDO Fatt.n. 32  del 20/07/2020 INCARICO PROFESSIONALE MANUTENZIONE ED. COMUNALI;22-07-2020;745;0;35;2;Spese in conto capitale;2;Investimenti fissi lordi e acquisto di terreni;1;Beni materiali;9;Beni immobili;999;Beni immobili n.a.c.;22-07-2020;
834;1;0;"3.263,29";"3.392,26";OMESSO NOMINATIVO NEL RISPETTO DELLA NORMATIVA SULLA PROTEZIONE DATI PERSONALI; ;L.R. 13/89 - INTERVENTI PER LELIMINAZIONE DELLE BARRIERE ARCHITETTONICHE. ANNUALITA 2019. EROGAZIONE SOMMA A SALDO.;22-07-2020;573;0;112;1;Spese correnti;4;Trasferimenti correnti;2;Trasferimenti correnti a Famiglie;2;Interventi assistenziali;999;Altri assegni e sussidi assistenziali;22-07-2020;
834;2;0;"128,97";"3.392,26";OMESSO NOMINATIVO NEL RISPETTO DELLA NORMATIVA SULLA PROTEZIONE DATI PERSONALI; ;L.R. 13/89 - INTERVENTI PER LELIMINAZIONE DELLE BARRIERE ARCHITETTONICHE. ANNUALITA 2019. EROGAZIONE SOMMA A TITOLO DI ACCONTO.;22-07-2020;573;0;112;1;Spese correnti;4;Trasferimenti correnti;2;Trasferimenti correnti a Famiglie;2;Interventi assistenziali;999;Altri assegni e sussidi assistenziali;22-07-2020;
836;1;0;"15.325,00";"15.325,00";COMUNE DI CASTELFRANCO VENETO; ;PRIMA QUOTA PROGETTO MOSTRA NOE BORDIGNON.;23-07-2020;338;0;230;1;Spese correnti;4;Trasferimenti correnti;1;Trasferimenti correnti a Amministrazioni Pubbliche;2;Trasferimenti correnti a Amministrazioni Locali;3;Trasferimenti correnti a Comuni;23-07-2020;
837;1;0;"6.305,77";"6.305,77";SUPERMERCATO F.LLI BORDIGNON S.N.C.; ;SALDO Fatt.n. 0000000004  del 30/06/2020 ACQUISTO BENI PER EMERGENZA ALIMENTARE;24-07-2020;563;0;128;1;Spese correnti;3;Acquisto di beni e servizi;1;Acquisto di beni;2;Altri beni di consumo;11;Generi alimentari;24-07-2020;
838;1;0;"93,61";"93,61";MAXI DI SRL; ;SALDO Fatt.n. D38520999000174  del 07/07/2020 ACQUISTO BENI PER EMERGENZA ALIMENTARE;24-07-2020;563;0;126;1;Spese correnti;3;Acquisto di beni e servizi;1;Acquisto di beni;2;Altri beni di consumo;11;Generi alimentari;24-07-2020;
839;1;0;"110,81";"110,81";MAXI DI SRL; ;SALDO Fatt.n. D38520999000170  del 25/06/2020 AQUISTO BENI PER EMERGENZA ALIMENTARE;24-07-2020;563;0;126;1;Spese correnti;3;Acquisto di beni e servizi;1;Acquisto di beni;2;Altri beni di consumo;11;Generi alimentari;24-07-2020;
840;1;0;"110,00";"110,00";KUWAIT PETROLEUM ITALIA S.P.A.;Z5B2CB3D93;SALDO Fatt.n. PJ02712094  del 30/06/2020 CARBURANTE AUTOMEZZI VIGILI - GIUGNO 2020;24-07-2020;179;0;109;1;Spese correnti;3;Acquisto di beni e servizi;1;Acquisto di beni;2;Altri beni di consumo;2;"Carburanti, combustibili e lubrificanti";24-07-2020;
841;1;0;"74,63";"274,80";KUWAIT PETROLEUM ITALIA S.P.A.;Z5B2CB3D93;SALDO Fatt.n. PJ02712092  del 30/06/2020 CARBURANTE AUTOMEZZI VIABILITA' - GIUGNO 2020;24-07-2020;590;0;111;1;Spese correnti;3;Acquisto di beni e servizi;1;Acquisto di beni;2;Altri beni di consumo;2;"Carburanti, combustibili e lubrificanti";24-07-2020;
841;2;0;"200,17";"274,80";KUWAIT PETROLEUM ITALIA S.P.A.;Z5B2CB3D93;SALDO Fatt.n. PJ02712091  del 30/06/2020 CARBURANTE AUTOMEZZI VIABILITA' - GIUGNO 2020;24-07-2020;590;0;111;1;Spese correnti;3;Acquisto di beni e servizi;1;Acquisto di beni;2;Altri beni di consumo;2;"Carburanti, combustibili e lubrificanti";24-07-2020;
842;1;0;"77,00";"77,00";KUWAIT PETROLEUM ITALIA S.P.A.;Z5B2CB3D93;SALDO Fatt.n. PJ02712093  del 30/06/2020 CARBURANTE AUTOMEZZI UFF. SOCIALE - GIUGNO 2020;24-07-2020;571;0;110;1;Spese correnti;3;Acquisto di beni e servizi;1;Acquisto di beni;2;Altri beni di consumo;2;"Carburanti, combustibili e lubrificanti";24-07-2020;
843;1;0;"264,50";"264,50";OMESSO NOMINATIVO NEL RISPETTO DELLA NORMATIVA SULLA PROTEZIONE DATI PERSONALI; ;FORNITURA PASTI A DOMICILIO MESE GIUGNO CASA RIPOSO AITA - FATT. N. 251/B DEL 08/07/2020.;24-07-2020;576;0;139;1;Spese correnti;4;Trasferimenti correnti;2;Trasferimenti correnti a Famiglie;2;Interventi assistenziali;999;Altri assegni e sussidi assistenziali;24-07-2020;
844;1;0;"90,92";"90,92";OMESSO NOMINATIVO NEL RISPETTO DELLA NORMATIVA SULLA PROTEZIONE DATI PERSONALI; ;FORNITURA PASTI A DOMICILIO MESE DI GIUGNO 2020 - FATTURA CASA DI RIPOSO AITA N. 249/B DEL 08/07/2020.;24-07-2020;576;0;90;1;Spese correnti;4;Trasferimenti correnti;2;Trasferimenti correnti a Famiglie;2;Interventi assistenziali;999;Altri assegni e sussidi assistenziali;24-07-2020;
845;1;0;"69.740,00";"69.740,00";COSTRUZIONI VIRAGO S.N.C.;7962522106;SALDO Fatt.n. 6/PA  del 20/07/2020 LAVORI DI EFFICIENTAMENTO TERMICO SCUOLE;29-07-2020;779;0;451;2;Spese in conto capitale;2;Investimenti fissi lordi e acquisto di terreni;1;Beni materiali;9;Beni immobili;3;Fabbricati ad uso scolastico;29-07-2020;
846;1;0;"2.562,00";"2.562,00";FRATERNITA' CRISTIANA DI SAN ZENONE SOCIETA' COOP.VA;Z742BFC5ED;SALDO Fatt.n. FATTPA 1_20  del 13/07/2020 ACQUISTO BENI PER EMERGENZA SANITARIA;04-08-2020;330;0;59;1;Spese correnti;3;Acquisto di beni e servizi;2;Acquisto di servizi;99;Altri servizi;999;Altri servizi diversi n.a.c.;04-08-2020;
847;1;0;"76,86";"159,77";CARROZZERIA CARRON S.R.L.;Z692AFDFFA;SALDO Fatt.n. 424  del 22/07/2020 RIPARAZIONE AUTO COMUNALI;04-08-2020;571;1;675;1;Spese correnti;3;Acquisto di beni e servizi;2;Acquisto di servizi;9;Manutenzione ordinaria e riparazioni;1;"Manutenzione ordinaria e riparazioni di mezzi di trasporto ad uso civile, di sicurezza e ordine pubblico";04-08-2020;
847;2;0;"82,91";"159,77";CARROZZERIA CARRON S.R.L.;Z692AFDFFA;SALDO Fatt.n. 425  del 22/07/2020 RIPARAZIONE AUTO COMUNALI;04-08-2020;571;1;675;1;Spese correnti;3;Acquisto di beni e servizi;2;Acquisto di servizi;9;Manutenzione ordinaria e riparazioni;1;"Manutenzione ordinaria e riparazioni di mezzi di trasporto ad uso civile, di sicurezza e ordine pubblico";04-08-2020;
848;1;0;"1.041,60";"1.041,60";KIRIKU' SOCIETA' COOPERATIVA SOCIALE ONLUS;ZFA2BFBEE7;SALDO Fatt.n. 582  del 08/07/2020 SERVIZI SOCIALI - GIUGNO 2020;04-08-2020;559;0;56;1;Spese correnti;3;Acquisto di beni e servizi;2;Acquisto di servizi;99;Altri servizi;999;Altri servizi diversi n.a.c.;04-08-2020;
849;1;0;"9.920,90";"9.920,90";PEDERIVA AUGUSTO & C. SNC;Z0F2B671BC;SALDO Fatt.n. 14  del 01/07/2020 LAVORI DI SOSTITUZIONE PORTE PALESTRA;04-08-2020;780;0;645;2;Spese in conto capitale;2;Investimenti fissi lordi e acquisto di terreni;1;Beni materiali;9;Beni immobili;3;Fabbricati ad uso scolastico;04-08-2020;
850;1;0;"64,71";"64,71";MAXI DI SRL; ;SALDO Fatt.n. D38520999000181  del 27/07/2020 ACQUISTO BENI PER EMERGENZA ALIMENTARE;04-08-2020;563;0;126;1;Spese correnti;3;Acquisto di beni e servizi;1;Acquisto di beni;2;Altri beni di consumo;11;Generi alimentari;04-08-2020;
851;1;0;"610,00";"610,00";TRAFFIC TECNOLOGY S.R.L.;Z052DA7D2C;SALDO Fatt.n. 776/PA  del 29/07/2020 FORNITURA DI UN TABLET PER I VARCHI;04-08-2020;746;0;217;2;Spese in conto capitale;2;Investimenti fissi lordi e acquisto di terreni;1;Beni materiali;7;Hardware;5;Tablet e dispositivi di telefonia fissa e mobile;04-08-2020;
852;1;0;"353,80";"353,80";WEB'nGO ITALIA s.r.l.;Z622C0FCC9;SALDO Fatt.n. 459  del 28/07/2020 RINNOVO SERVIZI POSTA ELETTRONICA;04-08-2020;39;0;123;1;Spese correnti;3;Acquisto di beni e servizi;2;Acquisto di servizi;19;Servizi informatici e di telecomunicazioni;1;Gestione e manutenzione applicazioni;04-08-2020;
853;1;0;"122,10";"122,10";POSTE ITALIANE SPA - PROVENTI POLO LOGISTICO;Z922D2257A;SALDO Fatt.n. 1020212584  del 29/07/2020 ACQUISTO STAMPATI PER NOTIFICA ATTI GIUDIZIARI;04-08-2020;37;0;178;1;Spese correnti;3;Acquisto di beni e servizi;1;Acquisto di beni;2;Altri beni di consumo;1;"Carta, cancelleria e stampati";04-08-2020;
854;1;0;"200,00";"200,00";PUBLIKA S.R.L.;Z3A2D92C73;SALDO Fatt.n. 1951/PA  del 30/07/2020 CORSO SULLE ASSUNZIONI;04-08-2020;52;0;203;1;Spese correnti;3;Acquisto di beni e servizi;2;Acquisto di servizi;4;Acquisto di servizi per formazione e addestramento del personale dell'ente;999;Acquisto di servizi per altre spese per formazione e addestramento n.a.c.;04-08-2020;
855;1;0;"138,18";"138,18";LA IDROFERRAMENTA SRL;Z3D2D0846B;SALDO Fatt.n. 59/PA  del 31/07/2020 FORNITURA MATERIALE VARIO;04-08-2020;591;0;161;1;Spese correnti;3;Acquisto di beni e servizi;1;Acquisto di beni;2;Altri beni di consumo;999;Altri beni e materiali di consumo n.a.c.;04-08-2020;
856;1;0;"836,65";"836,65";LA FONTESE DI GIANNI BROLESE & C. S.A.S.;ZD92DAB846;SALDO Fatt.n. 114/F  del 31/07/2020 MATERIALE DI CANCELLERIA PER UFFICI COMUNALI;04-08-2020;37;0;218;1;Spese correnti;3;Acquisto di beni e servizi;1;Acquisto di beni;2;Altri beni di consumo;1;"Carta, cancelleria e stampati";04-08-2020;
857;1;0;"-925,05";"752,34";SERVIZIO ELETTRICO NAZIONALE SpA;7134285639;SALDO Fatt.n. 26355820500952A  del 04/07/2020 SERVIZIO ELETTRICO NOTA DI CREDITO: MAGG 2019-APRILE 2020;04-08-2020;600;0;342;1;Spese correnti;3;Acquisto di beni e servizi;2;Acquisto di servizi;5;Utenze e canoni;4;Energia elettrica;04-08-2020;
857;2;0;"828,27";"752,34";SERVIZIO ELETTRICO NAZIONALE SpA;7134285639;SALDO Fatt.n. 26355550504202B  del 06/07/2020 CORRENTE ELETTRICA: MAGGIO 2019-APR 2020;04-08-2020;600;0;342;1;Spese correnti;3;Acquisto di beni e servizi;2;Acquisto di servizi;5;Utenze e canoni;4;Energia elettrica;04-08-2020;
857;3;0;"849,12";"752,34";SERVIZIO ELETTRICO NAZIONALE SpA;7134285639;SALDO Fatt.n. 26355820500952B  del 04/07/2020 ENERGIA ELETTRICA - MAGG 2019-APR 2020;04-08-2020;600;0;342;1;Spese correnti;3;Acquisto di beni e servizi;2;Acquisto di servizi;5;Utenze e canoni;4;Energia elettrica;04-08-2020;
858;1;0;"150,03";"150,03";CARROZZERIA CARRON S.R.L.;Z692AFDFFA;ACCONTO Fatt.n. 426  del 22/07/2020 RIPARAZIONE AUTO UFF. SOCIALE;04-08-2020;571;1;675;1;Spese correnti;3;Acquisto di beni e servizi;2;Acquisto di servizi;9;Manutenzione ordinaria e riparazioni;1;"Manutenzione ordinaria e riparazioni di mezzi di trasporto ad uso civile, di sicurezza e ordine pubblico";04-08-2020;
859;1;0;"29,81";"29,81";CARROZZERIA CARRON S.R.L.;Z692AFDFFA;SALDO Fatt.n. 426  del 22/07/2020 RIPARAZIONE AUTO UFF. SOCIALE;04-08-2020;590;1;676;1;Spese correnti;3;Acquisto di beni e servizi;2;Acquisto di servizi;9;Manutenzione ordinaria e riparazioni;1;"Manutenzione ordinaria e riparazioni di mezzi di trasporto ad uso civile, di sicurezza e ordine pubblico";04-08-2020;
861;1;0;"366,00";"366,00";O.D.V. PROTEZIONE CIVILE DI SAN ZENONE DEGLI EZZELINI; ;EROGAZIONE QUARTO ACCONTO DEL CONTRIBUTO ALL ASSOCIAZIONE VOLONTARI GRUPPO DI PROTEZIONE CIVILE DI SAN ZENONE DEGLI EZZELINI - ANNO 2020.;04-08-2020;382;1;114;1;Spese correnti;4;Trasferimenti correnti;1;Trasferimenti correnti a Amministrazioni Pubbliche;4;Trasferimenti correnti a organismi interni e/o unità locali della amministrazione;1;Trasferimenti correnti a organismi interni e/o unità locali della amministrazione;04-08-2020;
864;1;0;"135,58";"135,58";TESORERIA PROVINCIALE DELLO STATO; ;VERSAMENTO I.V.A. A DEBITO COMMERCIALE RELATIVA AL SECONDO TRIMESTRE 2020 - COD. IVA 615E;04-08-2020;660;0;0;1;Spese correnti;10;Altre spese correnti;3;Versamenti IVA a debito;1;Versamenti IVA a debito per le gestioni commerciali;1;Versamenti IVA a debito per le gestioni commerciali;04-08-2020;
865;1;0;"-2.015,00";"65,00";OPERE PIE D'ONIGO; ;SALDO Fatt.n. 236/2  del 14/07/2020 PRESTAZIONI SOCIALE - NOTA DI CREDITO;04-08-2020;560;0;113;1;Spese correnti;3;Acquisto di beni e servizi;2;Acquisto di servizi;15;Contratti di servizio pubblico;8;Contratti di servizio di assistenza sociale residenziale e semiresidenziale;04-08-2020;
865;2;0;"520,00";"65,00";OPERE PIE D'ONIGO; ;SALDO Fatt.n. 245/2  del 24/07/2020 PRESTAZIONI SOCIALI - LUGLIO 2020;04-08-2020;560;0;113;1;Spese correnti;3;Acquisto di beni e servizi;2;Acquisto di servizi;15;Contratti di servizio pubblico;8;Contratti di servizio di assistenza sociale residenziale e semiresidenziale;04-08-2020;
865;3;0;"1.560,00";"65,00";OPERE PIE D'ONIGO; ;SALDO Fatt.n. 218/2  del 30/06/2020 PRESTAZIONI SOCIALI - GIUGNO 2020;04-08-2020;560;0;113;1;Spese correnti;3;Acquisto di beni e servizi;2;Acquisto di servizi;15;Contratti di servizio pubblico;8;Contratti di servizio di assistenza sociale residenziale e semiresidenziale;04-08-2020;
866;1;0;"2.100,00";"4.200,00";BRUN LUIGINO;Z4E27A47DD;LIQUIDAZIONE QUOTA 2019-2020 PER COMODATO DI UTILIZZO IMMOBILE DA DESTINARE AD ARCHIVIO COMUNALE.;04-08-2020;24;0;185;1;Spese correnti;3;Acquisto di beni e servizi;2;Acquisto di servizi;7;Utilizzo di beni di terzi;1;Locazione di beni immobili;04-08-2020;
866;2;0;"2.100,00";"4.200,00";RINALDO BRUNO;Z4E27A47DD;LIQUIDAZIONE QUOTA 2019-2020 PER COMODATO DI UTILIZZO IMMOBILE DA DESTINARE AD ARCHIVIO COMUNALE.;04-08-2020;24;0;185;1;Spese correnti;3;Acquisto di beni e servizi;2;Acquisto di servizi;7;Utilizzo di beni di terzi;1;Locazione di beni immobili;04-08-2020;
867;1;0;"360,00";"360,00";ANDREATTA BERTILLA; ;CONTRIBUTO ECONOMICO STRAORDINARIO.;10-08-2020;576;0;249;1;Spese correnti;4;Trasferimenti correnti;2;Trasferimenti correnti a Famiglie;2;Interventi assistenziali;999;Altri assegni e sussidi assistenziali;10-08-2020;
868;1;0;"162,50";"162,50";OMESSO NOMINATIVO NEL RISPETTO DELLA NORMATIVA SULLA PROTEZIONE DATI PERSONALI; ;POLIZZA INCENDI "GENERALI" scad. 29/08/2020.;10-08-2020;576;0;90;1;Spese correnti;4;Trasferimenti correnti;2;Trasferimenti correnti a Famiglie;2;Interventi assistenziali;999;Altri assegni e sussidi assistenziali;10-08-2020;
869;1;0;"382,94";"382,94";MASARO DANTE; ;L.R. N. 16/2007 - RIPARTIZIONE CONTRIBUTO PER GLI INTERVENTI DI ELIMINAZIONE DELLE BARRIERE ARCHITETTONICHE NEL SETTORE PRIVATO.;10-08-2020;573;0;253;1;Spese correnti;4;Trasferimenti correnti;2;Trasferimenti correnti a Famiglie;2;Interventi assistenziali;999;Altri assegni e sussidi assistenziali;10-08-2020;
870;1;0;"1.500,00";"1.500,00";OMESSO NOMINATIVO NEL RISPETTO DELLA NORMATIVA SULLA PROTEZIONE DATI PERSONALI; ;EROGAZIONE CONTRIBUTO ALLASSOCIAZIONE NAZIONALE CARABINIERI - GRUPPO DI VOLONTARIATO DI FONTE E SAN ZENONE DEGLI EZZELINI - PER ATTIVITA INTEGRATIVA A SUPPORTO DELLE FORZE DI POLIZIA LOCALE.;10-08-2020;51;1;213;1;Spese correnti;3;Acquisto di beni e servizi;2;Acquisto di servizi;99;Altri servizi;3;Quote di associazioni;10-08-2020;
871;1;0;"5.040,00";"5.040,00";SCUOLA DELL'INFANZIA PARITARIA S. GIUSEPPE; ;IMPEGNO E LIQUIDAZIONE CONTRIBUTO STRAORDINARIO ALLE SCUOLE DELL INFANZIA PARROCCHIALI PER L ATTIVAZIONE DEI CENTRI ESTIVI 2020 NEL RISPETTO DEL PROGETTO EDUCATIVO PER LA PREVENZIONE DEL RISCHIO COVID-2019.;10-08-2020;221;0;247;1;Spese correnti;4;Trasferimenti correnti;4;Trasferimenti correnti a Istituzioni Sociali Private;1;Trasferimenti correnti a Istituzioni Sociali Private;1;Trasferimenti correnti a Istituzioni Sociali Private;10-08-2020;
872;1;0;"6.300,00";"9.880,00";SCUOLA D'INFANZIA "CAV. ANGELO CARRON"; ;IMPEGNO E LIQUIDAZIONE CONTRIBUTO STRAORDINARIO ALLE SCUOLE DELL INFANZIA PARROCCHIALI PER L ATTIVAZIONE DEI CENTRI ESTIVI 2020 NEL RISPETTO DEL PROGETTO EDUCATIVO PER LA PREVENZIONE DEL RISCHIO COVID-2019.;10-08-2020;221;0;248;1;Spese correnti;4;Trasferimenti correnti;4;Trasferimenti correnti a Istituzioni Sociali Private;1;Trasferimenti correnti a Istituzioni Sociali Private;1;Trasferimenti correnti a Istituzioni Sociali Private;10-08-2020;
872;2;0;"3.580,00";"9.880,00";SCUOLA D'INFANZIA "CAV. ANGELO CARRON" -PARIT. NIDO I.; ;IMPEGNO E LIQUIDAZIONE CONTRIBUTO STRAORDINARIO ALLE SCUOLE DELL INFANZIA PARROCCHIALI PER L ATTIVAZIONE DEI CENTRI ESTIVI 2020 NEL RISPETTO DEL PROGETTO EDUCATIVO PER LA PREVENZIONE DEL RISCHIO COVID-2019.;10-08-2020;221;0;248;1;Spese correnti;4;Trasferimenti correnti;4;Trasferimenti correnti a Istituzioni Sociali Private;1;Trasferimenti correnti a Istituzioni Sociali Private;1;Trasferimenti correnti a Istituzioni Sociali Private;10-08-2020;
881;1;0;"9,99";"9,99";PERSONALE DIPENDENTE - SEDE; ;STIPENDI MESE DI: AGOSTO 20;10-08-2020;62;0;15;1;Spese correnti;3;Acquisto di beni e servizi;2;Acquisto di servizi;2;"Organizzazione eventi, pubblicita` e servizi per trasferta";2;Indennità di missione e di trasferta;10-08-2020;
898;1;0;"5.961,21";"5.961,21";AMMINISTRATORI COMUNALI; ;STIPENDI MESE DI: AGOSTO 20;11-08-2020;2;0;1;1;Spese correnti;3;Acquisto di beni e servizi;2;Acquisto di servizi;1;Organi e incarichi istituzionali dell'amministrazione;1;Organi istituzionali dell'amministrazione - Indennità;11-08-2020;
903;1;0;"183,00";"183,00";G.S.E. S.p.A.; ;SALDO Fatt.n. 2020004822  del 03/03/2020 COSTI AMM.VI GSE;14-08-2020;27;0;232;1;Spese correnti;3;Acquisto di beni e servizi;2;Acquisto di servizi;99;Altri servizi;999;Altri servizi diversi n.a.c.;14-08-2020;
904;1;0;"183,00";"183,00";G.S.E. S.p.A.; ;SALDO Fatt.n. 2020030831  del 29/06/2020 COSTI AMM.VI GSE;18-08-2020;27;0;232;1;Spese correnti;3;Acquisto di beni e servizi;2;Acquisto di servizi;99;Altri servizi;999;Altri servizi diversi n.a.c.;18-08-2020;
905;1;0;"36,60";"36,60";G.S.E. S.p.A.; ;SALDO Fatt.n. 2020027020  del 15/05/2020 COSTI AMM.VI GSE;18-08-2020;27;0;232;1;Spese correnti;3;Acquisto di beni e servizi;2;Acquisto di servizi;99;Altri servizi;999;Altri servizi diversi n.a.c.;18-08-2020;
906;1;0;"170,83";"170,83";OMESSO NOMINATIVO NEL RISPETTO DELLA NORMATIVA SULLA PROTEZIONE DATI PERSONALI; ;FATTURA CASA DI RIPOSO AITA N. 300/B del 06.08.2020 PASTI LUGLIO E FATTURA SERV. ELETTR. NAZIONALE PERIODO LUGLIO/AGOSTO 2020.;18-08-2020;576;0;90;1;Spese correnti;4;Trasferimenti correnti;2;Trasferimenti correnti a Famiglie;2;Interventi assistenziali;999;Altri assegni e sussidi assistenziali;18-08-2020;
907;1;0;"306,58";"306,58";OMESSO NOMINATIVO NEL RISPETTO DELLA NORMATIVA SULLA PROTEZIONE DATI PERSONALI;01/;FATTURA CASA DI RIPOSO AITA N. 301/B DEL 06/08/2020 PASTI A DOMICILIO MESE DI LUGLIO 2020.;18-08-2020;576;0;139;1;Spese correnti;4;Trasferimenti correnti;2;Trasferimenti correnti a Famiglie;2;Interventi assistenziali;999;Altri assegni e sussidi assistenziali;18-08-2020;
908;1;0;"117,42";"117,42";OMESSO NOMINATIVO NEL RISPETTO DELLA NORMATIVA SULLA PROTEZIONE DATI PERSONALI; ;FATTURA CASA DI RIPOSO AITA N. 81/B del 29/02/2020 PASTI A DOMICILIO MESE FEBBRAIO 2020.;18-08-2020;576;0;90;1;Spese correnti;4;Trasferimenti correnti;2;Trasferimenti correnti a Famiglie;2;Interventi assistenziali;999;Altri assegni e sussidi assistenziali;18-08-2020;
909;1;0;"317,68";"317,68";OMESSO NOMINATIVO NEL RISPETTO DELLA NORMATIVA SULLA PROTEZIONE DATI PERSONALI; ;FORNITURA PASTI A DOMICILIO PER NUCLEO IN DISAGIO SOCIO-SANITARIO. PERIODO MAGGIO-OTTOBRE 2020 COMPRESI.;18-08-2020;576;0;139;1;Spese correnti;4;Trasferimenti correnti;2;Trasferimenti correnti a Famiglie;2;Interventi assistenziali;999;Altri assegni e sussidi assistenziali;18-08-2020;
911;1;0;"135,56";"135,56";CONTO SERVIZIO DI TESORERIA; ;SPESE PER BANCO POSTA SERV. TESORERIA DAL 01/01/2020 AL 31/05/2020 - GIRO CONTABILE DA CAP. 45 SPESA A CAP. 150 ENTRATA (VEDI REV. N. 786).;19-08-2020;45;0;228;1;Spese correnti;3;Acquisto di beni e servizi;2;Acquisto di servizi;16;Servizi amministrativi;2;Spese postali;19-08-2020;
912;1;0;"140,32";"140,32";CONTO SERVIZIO POLIZIA MUNICIPALE; ;SPESE PER BANCO POSTA SERV. POLIZIA MUNICIPALE PERIODO: 01/01/2020 - 31/05/2020 - GIRO CONTABILE DA CAP. 45 SPESA A CAP. 756 ENTRATA (VEDI REV. N. 791).;19-08-2020;45;0;227;1;Spese correnti;3;Acquisto di beni e servizi;2;Acquisto di servizi;16;Servizi amministrativi;2;Spese postali;19-08-2020;
913;1;0;"670,00";"670,00";O.D.V. PROTEZIONE CIVILE DI SAN ZENONE DEGLI EZZELINI; ;LIQUIDAZIONE DEL QUINTO ACCONTO DEL CONTRIBUTO ALLORGANIZZAZIONE DI VOLONTARIATO (O.D.V.) PROTEZIONE CIVILE DI SAN ZENONE DEGLI EZZELINI - ANNO 2020.;24-08-2020;382;1;114;1;Spese correnti;4;Trasferimenti correnti;1;Trasferimenti correnti a Amministrazioni Pubbliche;4;Trasferimenti correnti a organismi interni e/o unità locali della amministrazione;1;Trasferimenti correnti a organismi interni e/o unità locali della amministrazione;24-08-2020;
915;1;0;"5.000,00";"5.000,00";O.D.V. PROTEZIONE CIVILE DI SAN ZENONE DEGLI EZZELINI; ;LIQUIDAZIONE DEL SESTO ACCONTO DEL CONTRIBUTO PER ANNO 2020.;26-08-2020;382;1;114;1;Spese correnti;4;Trasferimenti correnti;1;Trasferimenti correnti a Amministrazioni Pubbliche;4;Trasferimenti correnti a organismi interni e/o unità locali della amministrazione;1;Trasferimenti correnti a organismi interni e/o unità locali della amministrazione;26-08-2020;
916;1;0;"251,25";"251,25";CASSA DEPOSITI E PRESTITI S.P.A.; ;SOGGETTI DIVERSI-PAGAMENTO ADUE B2B            COD DISP 0120061808TN75 NOME  CASSA DEPOSITI E PRESTITI SPA MANDATO 292844000914499 PFM   RUOLO 06052 RATE AMMORTAMENTO PRESTITI M (P. 33 -R. 855 del 30/06/2020);26-08-2020;316;0;265;1;Spese correnti;7;Interessi passivi;5;Interessi su Mutui e altri finanziamenti a medio lungo termine;4;Interessi passivi su finanziamenti a medio lungo termine a Imprese;4;Interessi passivi a Cassa Depositi e Prestiti - Gestione Tesoro su mutui e altri finanziamenti a medio lungo termine;26-08-2020;
917;1;0;"1.323,42";"1.323,42";CASSA DEPOSITI E PRESTITI S.P.A.; ;SOGGETTI DIVERSI-PAGAMENTO ADUE B2B            COD DISP 0120061808TN75 NOME  CASSA DEPOSITI E PRESTITI SPA MANDATO 292844000914499 PFM   RUOLO 06052 RATE AMMORTAMENTO PRESTITI M (P. 33 -R. 855 del 30/06/2020);26-08-2020;421;0;266;1;Spese correnti;7;Interessi passivi;5;Interessi su Mutui e altri finanziamenti a medio lungo termine;4;Interessi passivi su finanziamenti a medio lungo termine a Imprese;4;Interessi passivi a Cassa Depositi e Prestiti - Gestione Tesoro su mutui e altri finanziamenti a medio lungo termine;26-08-2020;
918;1;0;"1.334,79";"1.334,79";CASSA DEPOSITI E PRESTITI S.P.A.; ;SOGGETTI DIVERSI-PAGAMENTO ADUE B2B            COD DISP 0120061808TN75 NOME  CASSA DEPOSITI E PRESTITI SPA MANDATO 292844000914499 PFM   RUOLO 06052 RATE AMMORTAMENTO PRESTITI M (P. 33 -R. 855 del 30/06/2020);26-08-2020;604;0;268;1;Spese correnti;7;Interessi passivi;5;Interessi su Mutui e altri finanziamenti a medio lungo termine;4;Interessi passivi su finanziamenti a medio lungo termine a Imprese;4;Interessi passivi a Cassa Depositi e Prestiti - Gestione Tesoro su mutui e altri finanziamenti a medio lungo termine;26-08-2020;
919;1;0;"8.834,07";"8.834,07";CASSA DEPOSITI E PRESTITI S.P.A.; ;SOGGETTI DIVERSI-PAGAMENTO ADUE B2B            COD DISP 012007210CL5RR NOME  CASSA DEPOSITI E PRESTITI SPA MANDATO 292844000914499 PFM   RUOLO 06052 RATE AMMORTAMENTO PRESTITI S (P. 38 -R. 981 del 31/07/2020);26-08-2020;604;0;268;1;Spese correnti;7;Interessi passivi;5;Interessi su Mutui e altri finanziamenti a medio lungo termine;4;Interessi passivi su finanziamenti a medio lungo termine a Imprese;3;Interessi passivi a Cassa Depositi e Prestiti SPA su mutui e altri finanziamenti a medio lungo termine;26-08-2020;
920;1;0;"984,25";"984,25";MANCOR SPA - LIBRERIA PALAZZO ROBERTI;ZDB2D9A939;SALDO Fatt.n. 40047  del 06/08/2020 ACQUISTO LIBRI;26-08-2020;304;0;219;1;Spese correnti;3;Acquisto di beni e servizi;1;Acquisto di beni;1;"Giornali, riviste e pubblicazioni";2;Pubblicazioni;26-08-2020;
921;1;0;"238,33";"238,33";MANCOR SPA - LIBRERIA PALAZZO ROBERTI;ZDB2D9A939;SALDO NOTA DEL 16.10.2019 (NS. PROT. N. 13117 DEL 18.10.2019) PER FORNITURA LIBRI PER LA BIBLIOTECA COMUNALE.;26-08-2020;304;0;219;1;Spese correnti;3;Acquisto di beni e servizi;1;Acquisto di beni;1;"Giornali, riviste e pubblicazioni";2;Pubblicazioni;26-08-2020;
922;1;0;"1.623,93";"3.328,83";CASA DI RIPOSO 'AITA'; ;SALDO Fatt.n. 260/B  del 13/07/2020 RETTE PER ANZIANI - GIUGNO 2020;27-08-2020;560;0;55;1;Spese correnti;3;Acquisto di beni e servizi;2;Acquisto di servizi;15;Contratti di servizio pubblico;8;Contratti di servizio di assistenza sociale residenziale e semiresidenziale;27-08-2020;
922;2;0;"1.704,90";"3.328,83";CASA DI RIPOSO 'AITA'; ;SALDO Fatt.n. 286/B  del 05/08/2020 PRESTAZIONI SOCIALI L.V. - LUGLIO 2020;27-08-2020;560;0;55;1;Spese correnti;3;Acquisto di beni e servizi;2;Acquisto di servizi;15;Contratti di servizio pubblico;8;Contratti di servizio di assistenza sociale residenziale e semiresidenziale;27-08-2020;
923;1;0;"-795,69";"1.362,88";SUPERMERCATO FACCHIN DI FACCHIN A. & S.a.S.; ;SALDO Fatt.n. FPA 23/20  del 11/08/2020 NOTA DI CREDITO - STORNO FT N. 172020 DEL 18/07/2020;27-08-2020;563;0;127;1;Spese correnti;3;Acquisto di beni e servizi;1;Acquisto di beni;2;Altri beni di consumo;11;Generi alimentari;27-08-2020;
923;2;0;"567,19";"1.362,88";SUPERMERCATO FACCHIN DI FACCHIN A. & S.a.S.; ;SALDO Fatt.n. FPA 20/20  del 31/07/2020 ACQUISTO BENI PER EMERGENZA SANITARIA;27-08-2020;563;0;127;1;Spese correnti;3;Acquisto di beni e servizi;1;Acquisto di beni;2;Altri beni di consumo;11;Generi alimentari;27-08-2020;
923;3;0;"795,69";"1.362,88";SUPERMERCATO FACCHIN DI FACCHIN A. & S.a.S.; ;SALDO Fatt.n. 172020  del 18/07/2020 FATTURA ERRATA  - ACQUISTO BENI PER EMERGENZA SANITARIA;27-08-2020;563;0;127;1;Spese correnti;3;Acquisto di beni e servizi;1;Acquisto di beni;2;Altri beni di consumo;11;Generi alimentari;27-08-2020;
923;4;0;"795,69";"1.362,88";SUPERMERCATO FACCHIN DI FACCHIN A. & S.a.S.; ;SALDO Fatt.n. FPA 19/20  del 18/07/2020 ACQUISTO BENI PER EMERGENZA SANITARIA;27-08-2020;563;0;127;1;Spese correnti;3;Acquisto di beni e servizi;1;Acquisto di beni;2;Altri beni di consumo;11;Generi alimentari;27-08-2020;
924;1;0;"205,84";"205,84";CISL VENETO SERVIZI S.R.L.;Z7C2BFC524;SALDO Fatt.n. TVP/175  del 30/07/2020 PRATICHE SOCIALI - PRIMO SEMESTRE 2020;27-08-2020;559;0;54;1;Spese correnti;3;Acquisto di beni e servizi;2;Acquisto di servizi;99;Altri servizi;999;Altri servizi diversi n.a.c.;27-08-2020;
925;1;0;"179,34";"179,34";BELLNET INTERNATIONAL S.R.L.;Z752BFBD5F;SALDO Fatt.n. FATTPA 1695_20  del 31/07/2020 TRAFFICO TELEFONICO;27-08-2020;34;0;58;1;Spese correnti;3;Acquisto di beni e servizi;2;Acquisto di servizi;5;Utenze e canoni;1;Telefonia fissa;27-08-2020;
926;1;0;"12,73";"12,73";MAXI DI SRL; ;SALDO Fatt.n. D38520999000184  del 03/08/2020 ACQUISTO BENI PER EMERGENZA ALIMENTARE;27-08-2020;563;0;126;1;Spese correnti;3;Acquisto di beni e servizi;1;Acquisto di beni;2;Altri beni di consumo;11;Generi alimentari;27-08-2020;
927;1;0;"28,06";"28,06";SICURITALIA IVRI S.P.A.;Z3827208DE;SALDO Fatt.n. 9117008852  del 31/07/2020 ACQUISTO BENI PER EMERGENZA ALIMENTARE;27-08-2020;252;0;170;1;Spese correnti;3;Acquisto di beni e servizi;2;Acquisto di servizi;5;Utenze e canoni;999;Utenze e canoni per altri servizi n.a.c.;27-08-2020;
928;1;0;"61,00";"61,00";MyO S.P.A.;Z202DDB724;SALDO Fatt.n. 2040/200019230  del 31/07/2020 ACQUISTO MATERIALI PER ELEZIONI REGIONALI;27-08-2020;9;2;246;1;Spese correnti;3;Acquisto di beni e servizi;1;Acquisto di beni;2;Altri beni di consumo;10;Beni per consultazioni elettorali;27-08-2020;
929;1;0;"1.041,60";"1.041,60";KIRIKU' SOCIETA' COOPERATIVA SOCIALE ONLUS;ZFA2BFBEE7;SALDO Fatt.n. 708  del 31/07/2020 PRESTAZIONI SOCIALI - LUGLIO 2020;27-08-2020;559;0;56;1;Spese correnti;3;Acquisto di beni e servizi;2;Acquisto di servizi;99;Altri servizi;999;Altri servizi diversi n.a.c.;27-08-2020;
930;1;0;"221,34";"221,34";FARMACIA AGOSTINI DR. GIOVANNA; ;SALDO Fatt.n. 29 / PA  del 05/08/2020 ACQUISTO BENI PER EMERGENZA ALIMENTARE;27-08-2020;563;0;124;1;Spese correnti;3;Acquisto di beni e servizi;1;Acquisto di beni;2;Altri beni di consumo;11;Generi alimentari;27-08-2020;
931;1;0;"53,00";"53,00";KUWAIT PETROLEUM ITALIA S.P.A.;Z5B2CB3D93;SALDO Fatt.n. PJ02830218  del 31/07/2020 CARBURANTE AUTO VIGILI - LUGLIO 2020;27-08-2020;179;0;109;1;Spese correnti;3;Acquisto di beni e servizi;1;Acquisto di beni;2;Altri beni di consumo;2;"Carburanti, combustibili e lubrificanti";27-08-2020;
932;1;0;"63,01";"148,69";KUWAIT PETROLEUM ITALIA S.P.A.;Z5B2CB3D93;SALDO Fatt.n. PJ02830215  del 31/07/2020 CARBURANTE AUTO OPERAI - LUGLIO 2020;27-08-2020;590;0;111;1;Spese correnti;3;Acquisto di beni e servizi;1;Acquisto di beni;2;Altri beni di consumo;2;"Carburanti, combustibili e lubrificanti";27-08-2020;
932;2;0;"85,68";"148,69";KUWAIT PETROLEUM ITALIA S.P.A.;Z5B2CB3D93;SALDO Fatt.n. PJ02830216  del 31/07/2020 CARBURANTE AUTO OPERAI - LUGLIO 2020;27-08-2020;590;0;111;1;Spese correnti;3;Acquisto di beni e servizi;1;Acquisto di beni;2;Altri beni di consumo;2;"Carburanti, combustibili e lubrificanti";27-08-2020;
933;1;0;"42.212,00";"42.212,00";TRAFFIC TECNOLOGY S.R.L.;Z342B5B4AC;SALDO Fatt.n. 791/PA  del 04/08/2020 SISTEMA DI CONTROLLO ACCESSI E TRANSITI;27-08-2020;765;0;630;2;Spese in conto capitale;2;Investimenti fissi lordi e acquisto di terreni;1;Beni materiali;7;Hardware;3;Periferiche;27-08-2020;
934;1;0;"122,00";"122,00";ZONTA FRANCO;Z172DD5D74;SALDO Fatt.n. FPA 1/20  del 04/08/2020 REVISIONE AUTOMEZZO OPERAI;27-08-2020;590;1;245;1;Spese correnti;3;Acquisto di beni e servizi;2;Acquisto di servizi;9;Manutenzione ordinaria e riparazioni;1;"Manutenzione ordinaria e riparazioni di mezzi di trasporto ad uso civile, di sicurezza e ordine pubblico";27-08-2020;
935;1;0;"10.254,53";"10.254,53";STUDIO SMANIOTTO & MOROSIN;Z49292B1FC;SALDO Fatt.n. 33  del 04/08/2020 MIGLIORAMENTO SISMICO PLESSO SCOLASTICO;27-08-2020;779;0;372;2;Spese in conto capitale;2;Investimenti fissi lordi e acquisto di terreni;1;Beni materiali;9;Beni immobili;3;Fabbricati ad uso scolastico;27-08-2020;
936;1;0;"1.197,65";"1.197,65";NOIGROUP Coop. Soc. a R.L.;ZDE2A28443;SALDO Fatt.n. 504  del 31/07/2020 APERTURA MUSEO - LUGLIO 2020;27-08-2020;303;0;490;1;Spese correnti;3;Acquisto di beni e servizi;2;Acquisto di servizi;99;Altri servizi;999;Altri servizi diversi n.a.c.;27-08-2020;
937;1;0;"1.440,00";"1.440,00";NOIGROUP Coop. Soc. a R.L.;Z5F268727B;SALDO Fatt.n. 505  del 31/07/2020 GESTIONE BIBLIOTECA - LUGLIO 2020;27-08-2020;302;1;553;1;Spese correnti;3;Acquisto di beni e servizi;2;Acquisto di servizi;16;Servizi amministrativi;999;Altre spese per servizi amministrativi;27-08-2020;
938;1;0;"200,00";"200,00";SONDA COOPERATIVA SOCIALE ONLUS; ;SALDO Fatt.n. 228/PA/2020  del 31/07/2020 PRESTAZIONI SOCIALI - LUGLIO 2020;27-08-2020;576;0;84;1;Spese correnti;4;Trasferimenti correnti;2;Trasferimenti correnti a Famiglie;2;Interventi assistenziali;999;Altri assegni e sussidi assistenziali;27-08-2020;
939;1;0;"1.034,94";"1.034,94";SUPERMERCATO F.LLI BORDIGNON S.N.C.; ;SALDO Fatt.n. 0000000005  del 31/07/2020 ACQUISTO BENI PER EMERGENZA ALIMENTARE;27-08-2020;563;0;128;1;Spese correnti;3;Acquisto di beni e servizi;1;Acquisto di beni;2;Altri beni di consumo;11;Generi alimentari;27-08-2020;
940;1;0;"3.119,63";"3.119,63";A.S. DI ANDREATTA GIUSEPPE & C. S.R.L.;Z162D6230A;SALDO Fatt.n. 531  del 31/07/2020 MANUTENZIONE ILLUMIN. PUBBLICA;27-08-2020;601;0;191;1;Spese correnti;3;Acquisto di beni e servizi;2;Acquisto di servizi;15;Contratti di servizio pubblico;15;Contratti di servizio per l'illuminazione pubblica;27-08-2020;
941;1;0;"272,00";"272,00";MAGGIOLI SPA;ZA82DA2D91;SALDO Fatt.n. 0005956303  del 31/07/2020 FORNITURA DI LIBRI;27-08-2020;37;0;226;1;Spese correnti;3;Acquisto di beni e servizi;1;Acquisto di beni;2;Altri beni di consumo;999;Altri beni e materiali di consumo n.a.c.;27-08-2020;
942;1;0;"636,84";"636,84";TIPOGRAFIA BATTAGIN SRL;Z082D05D9F;SALDO Fatt.n. 7/P  del 31/07/2020 ACQUISTO BENI PER EMERGENZA SANITARIA;27-08-2020;37;0;159;1;Spese correnti;3;Acquisto di beni e servizi;1;Acquisto di beni;2;Altri beni di consumo;1;"Carta, cancelleria e stampati";27-08-2020;
943;1;0;"1.781,82";"1.781,82";UNICOOPER SERVIZI S.C.R.L.;ZDB2BDF192;SALDO Fatt.n. 1313  del 31/07/2020 PULIZIE EDIFICI COMUNALI - LUGLIO 2020;27-08-2020;34;2;45;1;Spese correnti;3;Acquisto di beni e servizi;2;Acquisto di servizi;13;Servizi ausiliari per il funzionamento dell'ente;2;Servizi di pulizia e lavanderia;27-08-2020;
944;1;0;"3.720,15";"3.720,15";KIRIKU' SOCIETA' COOPERATIVA SOCIALE ONLUS;Z6D274937A;SALDO Fatt.n. 730  del 06/08/2020 PRESTAZIONI SOCIALI  - MAGGIO-GIUGNO 2020;27-08-2020;559;0;106;1;Spese correnti;3;Acquisto di beni e servizi;2;Acquisto di servizi;99;Altri servizi;999;Altri servizi diversi n.a.c.;27-08-2020;
945;1;0;"214,99";"214,99";KUWAIT PETROLEUM ITALIA S.P.A.;Z5B2CB3D93;SALDO Fatt.n. PJ02830217  del 31/07/2020 CARBURANTE AUTO UFF. SOCIALE - LUGLIO 2020;27-08-2020;571;0;110;1;Spese correnti;3;Acquisto di beni e servizi;1;Acquisto di beni;2;Altri beni di consumo;2;"Carburanti, combustibili e lubrificanti";27-08-2020;
946;1;0;"3.806,40";"3.806,40";DE MARCO GIUSEPPE;Z6C2C87379;SALDO Fatt.n. FPA 3/20  del 14/08/2020 Progetto definitivo-esecutivo dei lavori di Efficientamento energetico dellilluminazione pubblica;27-08-2020;1004;0;94;2;Spese in conto capitale;2;Investimenti fissi lordi e acquisto di terreni;1;Beni materiali;9;Beni immobili;12;Infrastrutture stradali;27-08-2020;
947;1;0;"9,33";"9,33";AZIENDA U.L.S.S. N.2  MARCA TREVIGIANA; ;SALDO Fatt.n. 20-V11-002854  del 29/06/2020 PRESTAZIONI C/O CANILE SANITARIO;27-08-2020;180;0;258;1;Spese correnti;3;Acquisto di beni e servizi;2;Acquisto di servizi;15;Contratti di servizio pubblico;11;Contratti di servizio per la lotta al randagismo;27-08-2020;
948;1;0;"150,83";"150,83";TIM S.P.A.;6930022311;ACCONTO Fatt.n. 7X03009877  del 14/08/2020 TRAFFICO TELEFONICO - 5BIM 2020;27-08-2020;252;0;393;1;Spese correnti;3;Acquisto di beni e servizi;2;Acquisto di servizi;5;Utenze e canoni;999;Utenze e canoni per altri servizi n.a.c.;27-08-2020;
949;1;0;"19,56";"19,56";TIM S.P.A.;6930022311;SALDO Fatt.n. 7X03009877  del 14/08/2020 TRAFFICO TELEFONICO - 5BIM 2020;27-08-2020;235;0;394;1;Spese correnti;3;Acquisto di beni e servizi;2;Acquisto di servizi;5;Utenze e canoni;999;Utenze e canoni per altri servizi n.a.c.;27-08-2020;
950;1;0;"108,29";"108,29";TIM S.P.A.;ZE429271DF;ACCONTO Fatt.n. 4220420800033064  del 13/08/2020 TRAFFICO TELEFONICO - 5 BIM 2020;27-08-2020;235;0;394;1;Spese correnti;3;Acquisto di beni e servizi;2;Acquisto di servizi;5;Utenze e canoni;999;Utenze e canoni per altri servizi n.a.c.;27-08-2020;
951;1;0;"312,46";"312,46";TIM S.P.A.;ZE429271DF;ACCONTO Fatt.n. 4220420800033064  del 13/08/2020 TRAFFICO TELEFONICO - 5 BIM 2020;27-08-2020;311;0;396;1;Spese correnti;3;Acquisto di beni e servizi;2;Acquisto di servizi;5;Utenze e canoni;999;Utenze e canoni per altri servizi n.a.c.;27-08-2020;
952;1;0;"508,40";"508,40";TIM S.P.A.;ZE429271DF;SALDO Fatt.n. 4220420800033064  del 13/08/2020 TRAFFICO TELEFONICO - 5 BIM 2020;27-08-2020;310;0;395;1;Spese correnti;3;Acquisto di beni e servizi;2;Acquisto di servizi;5;Utenze e canoni;999;Utenze e canoni per altri servizi n.a.c.;27-08-2020;
953;1;0;"414,80";"414,80";SICURITALIA IVRI S.P.A.;Z3827208DE;ACCONTO Fatt.n. 9117009346  del 13/08/2020 SERVIZI ISPETTIVI  - AGOSTO 2020;27-08-2020;310;0;93;1;Spese correnti;3;Acquisto di beni e servizi;2;Acquisto di servizi;5;Utenze e canoni;999;Utenze e canoni per altri servizi n.a.c.;27-08-2020;
954;1;0;"152,50";"152,50";SICURITALIA IVRI S.P.A.;Z3827208DE;SALDO Fatt.n. 9117009346  del 13/08/2020 SERVIZI ISPETTIVI  - AGOSTO 2020;27-08-2020;235;0;92;1;Spese correnti;3;Acquisto di beni e servizi;2;Acquisto di servizi;5;Utenze e canoni;999;Utenze e canoni per altri servizi n.a.c.;27-08-2020;
955;1;0;"2.623,00";"2.623,00";ABCOMPANY SNC;Z082DD5C5A;SALDO Fatt.n. 27PA  del 12/08/2020 FORNITURA DI N. 50 BANCHI PER LE SCUOLE;27-08-2020;778;0;244;2;Spese in conto capitale;2;Investimenti fissi lordi e acquisto di terreni;1;Beni materiali;5;Attrezzature;999;Attrezzature n.a.c.;27-08-2020;
958;1;0;"50,00";"50,00";LACHIN FRANCO; ;L.R. N. 16/2007 - RIPARTIZIONE CONTRIBUTO PER GLI INTERVENTI DI ELIMINAZIONE DELLE BARRIERE ARCHITETTONICHE NEL SETTORE PRIVATO.;07-09-2020;573;0;253;1;Spese correnti;4;Trasferimenti correnti;2;Trasferimenti correnti a Famiglie;2;Interventi assistenziali;999;Altri assegni e sussidi assistenziali;07-09-2020;
960;1;0;"4.758,00";"4.758,00";BERTONCELLO PAOLA ECONOMO COMUNALE; ;REFERENDUM COSTITUZIONALE ED ELEZIONI REGIONALI DEL 20 E 21 SETTEMBRE 2020 - ANTICIPAZIONE ALLECONOMO COMUNALE DEGLI IMPORTI DA CORRISPONDERE AI COMPONENTI DEI SEGGI ELETTORALI.;07-09-2020;9;3;270;1;Spese correnti;3;Acquisto di beni e servizi;2;Acquisto di servizi;99;Altri servizi;4;Altre spese per consultazioni elettorali dell'ente;07-09-2020;
961;1;0;"1.253,25";"4.598,25";SCUOLA D'INFANZIA "CAV. ANGELO CARRON"; ;IMPEGNO E LIQUIDAZIONE SALDO CONTRIBUTO ORDINARIO PER L ANNO SCOLASTICO 2019/2020.;08-09-2020;222;0;284;1;Spese correnti;4;Trasferimenti correnti;4;Trasferimenti correnti a Istituzioni Sociali Private;1;Trasferimenti correnti a Istituzioni Sociali Private;1;Trasferimenti correnti a Istituzioni Sociali Private;08-09-2020;
961;2;0;"1.000,00";"4.598,25";SCUOLA DELL'INFANZIA "SACRI CUORI" di LIEDOLO; ;IMPEGNO E LIQUIDAZIONE SALDO CONTRIBUTO ORDINARIO PER L ANNO SCOLASTICO 2019/2020.;08-09-2020;222;0;284;1;Spese correnti;4;Trasferimenti correnti;4;Trasferimenti correnti a Istituzioni Sociali Private;1;Trasferimenti correnti a Istituzioni Sociali Private;1;Trasferimenti correnti a Istituzioni Sociali Private;08-09-2020;
961;3;0;"2.345,00";"4.598,25";SCUOLA DELL'INFANZIA PARITARIA S. GIUSEPPE; ;IMPEGNO E LIQUIDAZIONE SALDO CONTRIBUTO ORDINARIO PER L ANNO SCOLASTICO 2019/2020.;08-09-2020;222;0;284;1;Spese correnti;4;Trasferimenti correnti;4;Trasferimenti correnti a Istituzioni Sociali Private;1;Trasferimenti correnti a Istituzioni Sociali Private;1;Trasferimenti correnti a Istituzioni Sociali Private;08-09-2020;
962;1;0;"714,00";"714,00";BERTONCELLO PAOLA ECONOMO COMUNALE; ;REFERENDUM COSTITUZIONALE ED ELEZIONI REGIONALI DEL 20 E 21 SETTEMBRE 2020 - INTEGRAZIONE ANTICIPAZIONE ALL ECONOMO COMUNALE DEGLI IMPORTI DA CORRISPONDERE AI COMPONENTI DEI SEGGI ELETTORALI A SEGUITO CIRCOLARE F.L. N. 17/2020 .;15-09-2020;9;3;270;1;Spese correnti;3;Acquisto di beni e servizi;2;Acquisto di servizi;99;Altri servizi;4;Altre spese per consultazioni elettorali dell'ente;15-09-2020;
996;1;0;"5.961,21";"5.961,21";AMMINISTRATORI COMUNALI; ;STIPENDI MESE DI: SETTEMBRE 20;16-09-2020;2;0;1;1;Spese correnti;3;Acquisto di beni e servizi;2;Acquisto di servizi;1;Organi e incarichi istituzionali dell'amministrazione;1;Organi istituzionali dell'amministrazione - Indennità;16-09-2020;
999;1;0;"16.428,00";"16.428,00";SCUOLA DELL'INFANZIA PARITARIA S. GIUSEPPE; ;CONTRIBUTO STRAORDINARIO A SCUOLA DELL INFANZIA PARROCCHIALE A SOSTEGNO DELLA RIPRESA DELLE ATTTIVITA DIDATTICHE 2020/2021 IN SICUREZZA DEL RISCHIO COVID-19 E DELLE RETTE PER LE FAMIGLIE.;17-09-2020;222;0;300;1;Spese correnti;4;Trasferimenti correnti;4;Trasferimenti correnti a Istituzioni Sociali Private;1;Trasferimenti correnti a Istituzioni Sociali Private;1;Trasferimenti correnti a Istituzioni Sociali Private;17-09-2020;
1000;1;0;"3.552,00";"3.552,00";SCUOLA D'INFANZIA "CAV. ANGELO CARRON" -PARIT. NIDO I.; ;CONTRIBUTO STRAORDINARIO A SCUOLA DELL INFANZIA PARROCCHIALE A SOSTEGNO DELLA RIPRESA DELLE ATTTIVITA DIDATTICHE 2020/2021 IN SICUREZZA DEL RISCHIO COVID-19 E DELLE RETTE PER LE FAMIGLIE.;17-09-2020;222;0;301;1;Spese correnti;4;Trasferimenti correnti;4;Trasferimenti correnti a Istituzioni Sociali Private;1;Trasferimenti correnti a Istituzioni Sociali Private;1;Trasferimenti correnti a Istituzioni Sociali Private;17-09-2020;
1001;1;0;"13.320,00";"13.320,00";SCUOLA D'INFANZIA "CAV. ANGELO CARRON"; ;CONTRIBUTO STRAORDINARIO A SCUOLA DELL INFANZIA PARROCCHIALE A SOSTEGNO DELLA RIPRESA DELLE ATTTIVITA DIDATTICHE 2020/2021 IN SICUREZZA DEL RISCHIO COVID-19 E DELLE RETTE PER LE FAMIGLIE.;17-09-2020;222;0;302;1;Spese correnti;4;Trasferimenti correnti;4;Trasferimenti correnti a Istituzioni Sociali Private;1;Trasferimenti correnti a Istituzioni Sociali Private;1;Trasferimenti correnti a Istituzioni Sociali Private;17-09-2020;
1002;1;0;"6.660,00";"6.660,00";SCUOLA DELL'INFANZIA "SACRI CUORI" di LIEDOLO; ;CONTRIBUTO STRAORDINARIO A SCUOLA DELL INFANZIA PARROCCHIALE A SOSTEGNO DELLA RIPRESA DELLE ATTTIVITA DIDATTICHE 2020/2021 IN SICUREZZA DEL RISCHIO COVID-19 E DELLE RETTE PER LE FAMIGLIE.;17-09-2020;222;0;303;1;Spese correnti;4;Trasferimenti correnti;4;Trasferimenti correnti a Istituzioni Sociali Private;1;Trasferimenti correnti a Istituzioni Sociali Private;1;Trasferimenti correnti a Istituzioni Sociali Private;17-09-2020;
1003;1;0;"161,72";"161,72";FERRONATO S.R.L.;Z7C26AD935;SALDO Fatt.n. P4  del 31/07/2020 FORNITURA MATERIALE DI FERRAMENTA;21-09-2020;71;2;276;1;Spese correnti;3;Acquisto di beni e servizi;1;Acquisto di beni;2;Altri beni di consumo;999;Altri beni e materiali di consumo n.a.c.;21-09-2020;
1004;1;0;"1.824,90";"1.824,90";CASA DI RIPOSO 'AITA'; ;ACCONTO Fatt.n. 269/B  del 22/07/2020 SERVIZIO DI ASSISTENZA DOMICILIARE  - GIUGNO 2020;21-09-2020;562;1;69;1;Spese correnti;3;Acquisto di beni e servizi;2;Acquisto di servizi;15;Contratti di servizio pubblico;9;Contratti di servizio di assistenza sociale domiciliare;21-09-2020;
1005;1;0;"2.114,10";"6.121,35";CASA DI RIPOSO 'AITA'; ;SALDO Fatt.n. 269/B  del 22/07/2020 SERVIZIO DI ASSISTENZA DOMICILIARE  - GIUGNO 2020;21-09-2020;562;1;240;1;Spese correnti;3;Acquisto di beni e servizi;2;Acquisto di servizi;15;Contratti di servizio pubblico;9;Contratti di servizio di assistenza sociale domiciliare;21-09-2020;
1005;2;0;"4.007,25";"6.121,35";CASA DI RIPOSO 'AITA'; ;SALDO Fatt.n. 305/B  del 18/08/2020 SERVIZIO DI ASSISTENZA DOMICILIARE - LUGLIO 2020;21-09-2020;562;1;240;1;Spese correnti;3;Acquisto di beni e servizi;2;Acquisto di servizi;15;Contratti di servizio pubblico;9;Contratti di servizio di assistenza sociale domiciliare;21-09-2020;
1006;1;0;"1.926,79";"1.926,79";E.N.P.A. ENTE NAZIONALE PROTEZIONE ANIMALI ONLUS;Z3F2C6A54F;SALDO Fatt.n. 1073/PA  del 16/07/2020 SPESE CANILE;21-09-2020;180;0;133;1;Spese correnti;3;Acquisto di beni e servizi;2;Acquisto di servizi;15;Contratti di servizio pubblico;11;Contratti di servizio per la lotta al randagismo;21-09-2020;
1007;1;0;"425,08";"425,08";Farmacie Piu' SAS - Carinatese; ;SALDO Fatt.n. 28C  del 31/07/2020 SPESE PER EMERGENZA ALIMENTARE;21-09-2020;563;0;125;1;Spese correnti;3;Acquisto di beni e servizi;1;Acquisto di beni;2;Altri beni di consumo;11;Generi alimentari;21-09-2020;
1008;1;0;"47,00";"47,00";KUWAIT PETROLEUM ITALIA S.P.A.;Z4E197F01F;SALDO Fatt.n. PJ02945344  del 31/08/2020 CARBURANTE AUTO VIGILI - AGOSTO 2020;21-09-2020;179;0;109;1;Spese correnti;3;Acquisto di beni e servizi;1;Acquisto di beni;2;Altri beni di consumo;2;"Carburanti, combustibili e lubrificanti";21-09-2020;
1009;1;0;"135,99";"135,99";KUWAIT PETROLEUM ITALIA S.P.A.;Z4E197F01F;SALDO Fatt.n. PJ02945343  del 31/08/2020 CARBURANTE AUTO UFF. SOCIALE - AGOSTO 2020;21-09-2020;571;0;110;1;Spese correnti;3;Acquisto di beni e servizi;1;Acquisto di beni;2;Altri beni di consumo;2;"Carburanti, combustibili e lubrificanti";21-09-2020;
1010;1;0;"71,00";"71,00";KUWAIT PETROLEUM ITALIA S.P.A.;Z4E197F01F;SALDO Fatt.n. PJ02945342  del 31/08/2020 CARBURANTE AUTO VIABILITA' - AGOSTO 2020;21-09-2020;590;0;111;1;Spese correnti;3;Acquisto di beni e servizi;1;Acquisto di beni;2;Altri beni di consumo;2;"Carburanti, combustibili e lubrificanti";21-09-2020;
1011;1;0;"1.091,90";"1.091,90";INFOTEAM SRL;ZE12E13758;SALDO Fatt.n. 00000002103  del 31/07/2020 FORNITURA E CONFIGURAZIONE FIREWALL PER SCUOLE;21-09-2020;256;0;271;1;Spese correnti;3;Acquisto di beni e servizi;1;Acquisto di beni;2;Altri beni di consumo;6;Materiale informatico;21-09-2020;
1012;1;0;"421,44";"421,44";ALTO TREVIGIANO SERVIZI S.R.L.;Z3F2BAC0F4;SALDO Fatt.n. 62202000002443  del 25/08/2020 SERVIZIO IDRICO SCUOLA PRIMARIA: FEBB-MAGGIO 2020;21-09-2020;235;0;98;1;Spese correnti;3;Acquisto di beni e servizi;2;Acquisto di servizi;5;Utenze e canoni;5;Acqua;21-09-2020;
1013;1;0;"6,85";"6,85";ALTO TREVIGIANO SERVIZI S.R.L.;Z3F2BAC0F4;SALDO Fatt.n. 62202000002432  del 25/08/2020 SERVIZIO IDRICO TORRE: FEBB-MAGG 2020;21-09-2020;313;2;101;1;Spese correnti;3;Acquisto di beni e servizi;2;Acquisto di servizi;5;Utenze e canoni;5;Acqua;21-09-2020;
1014;1;0;"15,74";"15,74";ALTO TREVIGIANO SERVIZI S.R.L.;Z3F2BAC0F4;SALDO Fatt.n. 62202000002431  del 25/08/2020 SERVIZIO IDRICO CENTRO CULTURALE: FEBB-MAGG 2020;21-09-2020;310;0;99;1;Spese correnti;3;Acquisto di beni e servizi;2;Acquisto di servizi;5;Utenze e canoni;5;Acqua;21-09-2020;
1015;1;0;"139,00";"139,00";ALTO TREVIGIANO SERVIZI S.R.L.;Z3F2BAC0F4;SALDO Fatt.n. 62202000002453  del 25/08/2020 SERVIZIO IDRICO SCUOLE: FEBB-MAGGIO 2020;21-09-2020;235;0;98;1;Spese correnti;3;Acquisto di beni e servizi;2;Acquisto di servizi;5;Utenze e canoni;5;Acqua;21-09-2020;
1016;1;0;"-1,87";"328,49";ALTO TREVIGIANO SERVIZI S.R.L.;Z3F2BAC0F4;SALDO Fatt.n. 62202000002439  del 25/08/2020 SERVIZIO IDRICO VILLA RUBELLI: SETT 2019-MAGG 2020;21-09-2020;34;0;97;1;Spese correnti;3;Acquisto di beni e servizi;2;Acquisto di servizi;5;Utenze e canoni;5;Acqua;21-09-2020;
1016;2;0;"330,36";"328,49";ALTO TREVIGIANO SERVIZI S.R.L.;Z3F2BAC0F4;SALDO Fatt.n. 62202000002441  del 25/08/2020 SERVIZIO IDRICO MUNICIPIO: SETT 2019-MAGG 2020;21-09-2020;34;0;97;1;Spese correnti;3;Acquisto di beni e servizi;2;Acquisto di servizi;5;Utenze e canoni;5;Acqua;21-09-2020;
1017;1;0;"0,26";"19,23";ALTO TREVIGIANO SERVIZI S.R.L.;Z3F2BAC0F4;SALDO Fatt.n. 62202000002438  del 25/08/2020 SERVIZIO IDRICO CIMITERO: SETT 2019-MAGG 2020;21-09-2020;413;0;102;1;Spese correnti;3;Acquisto di beni e servizi;2;Acquisto di servizi;5;Utenze e canoni;5;Acqua;21-09-2020;
1017;2;0;"6,89";"19,23";ALTO TREVIGIANO SERVIZI S.R.L.;Z3F2BAC0F4;SALDO Fatt.n. 62202000002447  del 25/08/2020 SERVIZIO IDRICO CIMITERO: SETT 2019-MAGG 2020;21-09-2020;413;0;102;1;Spese correnti;3;Acquisto di beni e servizi;2;Acquisto di servizi;5;Utenze e canoni;5;Acqua;21-09-2020;
1017;3;0;"12,08";"19,23";ALTO TREVIGIANO SERVIZI S.R.L.;Z3F2BAC0F4;SALDO Fatt.n. 62202000002440  del 25/08/2020 SERVIZIO IDRICO CIMITERO: SETT.2019-MAGGIO 2020;21-09-2020;413;0;102;1;Spese correnti;3;Acquisto di beni e servizi;2;Acquisto di servizi;5;Utenze e canoni;5;Acqua;21-09-2020;
1018;1;0;"221,13";"1.470,26";ALTO TREVIGIANO SERVIZI S.R.L.;Z3F2BAC0F4;SALDO Fatt.n. 62202000002437  del 25/08/2020 SERVIZIO IDRICO MAGAZZINO: MARZO 2019 MAGG 2020;21-09-2020;530;0;103;1;Spese correnti;3;Acquisto di beni e servizi;2;Acquisto di servizi;5;Utenze e canoni;5;Acqua;21-09-2020;
1018;2;0;"387,10";"1.470,26";ALTO TREVIGIANO SERVIZI S.R.L.;Z3F2BAC0F4;SALDO Fatt.n. 62202000002445  del 25/08/2020 SERVIZIO IDRICO IMP. SPORTIVI: MARZO-MAGGIO 2020;21-09-2020;530;0;103;1;Spese correnti;3;Acquisto di beni e servizi;2;Acquisto di servizi;5;Utenze e canoni;5;Acqua;21-09-2020;
1018;3;0;"862,03";"1.470,26";ALTO TREVIGIANO SERVIZI S.R.L.;Z3F2BAC0F4;SALDO Fatt.n. 62202000002444  del 25/08/2020 SERVIZIO IDRICO IMP. SPORTIVI: FEBB-MAGG 2020;21-09-2020;530;0;103;1;Spese correnti;3;Acquisto di beni e servizi;2;Acquisto di servizi;5;Utenze e canoni;5;Acqua;21-09-2020;
1019;1;0;"46,33";"188,68";ALTO TREVIGIANO SERVIZI S.R.L.;Z3F2BAC0F4;SALDO Fatt.n. 62202000002455  del 25/08/2020 SERVIZIO IDRICO LA ROGGIA: OTT 2019-MAGG 2020;21-09-2020;561;2;100;1;Spese correnti;3;Acquisto di beni e servizi;2;Acquisto di servizi;5;Utenze e canoni;5;Acqua;21-09-2020;
1019;2;0;"142,35";"188,68";ALTO TREVIGIANO SERVIZI S.R.L.;Z3F2BAC0F4;SALDO Fatt.n. 62202000002457  del 25/08/2020 SERVIZIO IDRICO LA ROGGIA: SETT 2019-MAGG 2020;21-09-2020;561;2;100;1;Spese correnti;3;Acquisto di beni e servizi;2;Acquisto di servizi;5;Utenze e canoni;5;Acqua;21-09-2020;
1020;1;0;"0,44";"577,60";ALTO TREVIGIANO SERVIZI S.R.L.;Z3F2BAC0F4;SALDO Fatt.n. 62202000002435  del 25/08/2020 SERVIZIO IDRICO STRADE COMUNALI: SETT. 2019-MAGGIO 2020;21-09-2020;591;2;105;1;Spese correnti;3;Acquisto di beni e servizi;2;Acquisto di servizi;5;Utenze e canoni;5;Acqua;21-09-2020;
1020;2;0;"0,44";"577,60";ALTO TREVIGIANO SERVIZI S.R.L.;Z3F2BAC0F4;SALDO Fatt.n. 62202000002434  del 25/08/2020 SERVIZIO IDRICO STRADE: SETT 2019-MAGG 2020;21-09-2020;591;2;105;1;Spese correnti;3;Acquisto di beni e servizi;2;Acquisto di servizi;5;Utenze e canoni;5;Acqua;21-09-2020;
1020;3;0;"0,53";"577,60";ALTO TREVIGIANO SERVIZI S.R.L.;Z3F2BAC0F4;SALDO Fatt.n. 62202000002450  del 25/08/2020 SERVIZIO IDRICO STRADE: SETT 2019-MAGG 2020;21-09-2020;591;2;105;1;Spese correnti;3;Acquisto di beni e servizi;2;Acquisto di servizi;5;Utenze e canoni;5;Acqua;21-09-2020;
1020;4;0;"9,58";"577,60";ALTO TREVIGIANO SERVIZI S.R.L.;Z3F2BAC0F4;SALDO Fatt.n. 62202000002436  del 25/08/2020 SERVIZIO IDRICO STRADE: SETT 2019-MAGG 2020;21-09-2020;591;2;105;1;Spese correnti;3;Acquisto di beni e servizi;2;Acquisto di servizi;5;Utenze e canoni;5;Acqua;21-09-2020;
1020;5;0;"11,20";"577,60";ALTO TREVIGIANO SERVIZI S.R.L.;Z3F2BAC0F4;SALDO Fatt.n. 62202000002448  del 25/08/2020 SERVIZIO IDRICO STRADE: SETT 2019-MAGG 2020;21-09-2020;591;2;105;1;Spese correnti;3;Acquisto di beni e servizi;2;Acquisto di servizi;5;Utenze e canoni;5;Acqua;21-09-2020;
1020;6;0;"11,21";"577,60";ALTO TREVIGIANO SERVIZI S.R.L.;Z3F2BAC0F4;SALDO Fatt.n. 62202000002433  del 25/08/2020 SERVIZIO IDRICO STRADE COMUNALI: MAGGIO 2020;21-09-2020;591;2;105;1;Spese correnti;3;Acquisto di beni e servizi;2;Acquisto di servizi;5;Utenze e canoni;5;Acqua;21-09-2020;
1020;7;0;"17,23";"577,60";ALTO TREVIGIANO SERVIZI S.R.L.;Z3F2BAC0F4;SALDO Fatt.n. 62202000002451  del 25/08/2020 SERVIZIO IDRICO STRADE: FEBB-MAGG 2020;21-09-2020;591;2;105;1;Spese correnti;3;Acquisto di beni e servizi;2;Acquisto di servizi;5;Utenze e canoni;5;Acqua;21-09-2020;
1020;8;0;"26,62";"577,60";ALTO TREVIGIANO SERVIZI S.R.L.;Z3F2BAC0F4;SALDO Fatt.n. 62202000002449  del 25/08/2020 SERVIZIO IDRICO STRADE COMUNALI: FEBB-MAGGIO 2020;21-09-2020;591;2;105;1;Spese correnti;3;Acquisto di beni e servizi;2;Acquisto di servizi;5;Utenze e canoni;5;Acqua;21-09-2020;
1020;9;0;"76,34";"577,60";ALTO TREVIGIANO SERVIZI S.R.L.;Z3F2BAC0F4;SALDO Fatt.n. 62202000002456  del 25/08/2020 SERVIZIO IDRICO STRADE COMUNALI: FEBB-MAGG 2020;21-09-2020;591;2;105;1;Spese correnti;3;Acquisto di beni e servizi;2;Acquisto di servizi;5;Utenze e canoni;5;Acqua;21-09-2020;
1020;10;0;"424,01";"577,60";ALTO TREVIGIANO SERVIZI S.R.L.;Z3F2BAC0F4;SALDO Fatt.n. 62202000002442  del 25/08/2020 SERVIZIO IDRICO STRADE: SETT 2019-MAGGIO 2020;21-09-2020;591;2;105;1;Spese correnti;3;Acquisto di beni e servizi;2;Acquisto di servizi;5;Utenze e canoni;5;Acqua;21-09-2020;
1021;1;0;"121,40";"121,40";ALTO TREVIGIANO SERVIZI S.R.L.;Z3F2BAC0F4;SALDO Fatt.n. 62202000002454  del 25/08/2020 SERVIZIO IDRICO SCUOLA SECONDARIA: OTT 2019-MAGG 2020;21-09-2020;252;0;104;1;Spese correnti;3;Acquisto di beni e servizi;2;Acquisto di servizi;5;Utenze e canoni;5;Acqua;21-09-2020;
1022;1;0;"17,82";"1.224,62";PLT PUREGREEN;7134285639;SALDO Fatt.n. 20200040003293  del 11/09/2020 FORNITURA ENERGIA ELETTRICA CENTRO CULTURALE: LUGLIO-AGOSTO 2020;21-09-2020;561;2;215;1;Spese correnti;3;Acquisto di beni e servizi;2;Acquisto di servizi;5;Utenze e canoni;4;Energia elettrica;21-09-2020;
1022;2;0;"89,73";"1.224,62";PLT PUREGREEN;7134285639;SALDO Fatt.n. 20200040002854  del 11/08/2020 FORNITURA ENERGIA ELETTRICA - LUGLIO 2020;21-09-2020;561;2;215;1;Spese correnti;3;Acquisto di beni e servizi;2;Acquisto di servizi;5;Utenze e canoni;4;Energia elettrica;21-09-2020;
1022;3;0;"550,26";"1.224,62";PLT PUREGREEN;7134285639;SALDO Fatt.n. 20200040003301  del 11/09/2020 FORNITURA ENERGIA ELETTRICA CENTRO POLIV: AGOSTO 2020;21-09-2020;561;2;215;1;Spese correnti;3;Acquisto di beni e servizi;2;Acquisto di servizi;5;Utenze e canoni;4;Energia elettrica;21-09-2020;
1022;4;0;"566,81";"1.224,62";PLT PUREGREEN;7134285639;SALDO Fatt.n. 20200040002862  del 11/08/2020 FORNITURA ENERGIA ELETTRICA - LUGLIO 2020;21-09-2020;561;2;215;1;Spese correnti;3;Acquisto di beni e servizi;2;Acquisto di servizi;5;Utenze e canoni;4;Energia elettrica;21-09-2020;
1023;1;0;"409,20";"996,85";PLT PUREGREEN;7134285639;SALDO Fatt.n. 20200040003295  del 11/09/2020 FORNITURA ENERGIA ELETTRICA MUNICIPIO: AGOSTO 2020;21-09-2020;34;0;207;1;Spese correnti;3;Acquisto di beni e servizi;2;Acquisto di servizi;5;Utenze e canoni;4;Energia elettrica;21-09-2020;
1023;2;0;"587,65";"996,85";PLT PUREGREEN;7134285639;SALDO Fatt.n. 20200040002856  del 11/08/2020 FORNITURA ENERGIA ELETTRICA - LUGLIO 2020;21-09-2020;34;0;207;1;Spese correnti;3;Acquisto di beni e servizi;2;Acquisto di servizi;5;Utenze e canoni;4;Energia elettrica;21-09-2020;
1024;1;0;"-214,68";"1.170,94";PLT PUREGREEN;7134285639;SALDO Fatt.n. 20200040003288  del 11/09/2020 FORNITURA ENERGIA ELETTRICA PALESTRA: AGOSTO 2020;21-09-2020;530;0;214;1;Spese correnti;3;Acquisto di beni e servizi;2;Acquisto di servizi;5;Utenze e canoni;4;Energia elettrica;21-09-2020;
1024;2;0;"200,53";"1.170,94";PLT PUREGREEN;7134285639;SALDO Fatt.n. 20200040002852  del 11/08/2020 FORNITURA ENERGIA ELETTRICA - LUGLIO 2020;21-09-2020;530;0;214;1;Spese correnti;3;Acquisto di beni e servizi;2;Acquisto di servizi;5;Utenze e canoni;4;Energia elettrica;21-09-2020;
1024;3;0;"536,06";"1.170,94";PLT PUREGREEN;7134285639;SALDO Fatt.n. 20200040003291  del 11/09/2020 FORNITURA ENERGIA ELETTRICA IMP. SPORTIVI: LUGLIO-AGOSTO 2020;21-09-2020;530;0;214;1;Spese correnti;3;Acquisto di beni e servizi;2;Acquisto di servizi;5;Utenze e canoni;4;Energia elettrica;21-09-2020;
1024;4;0;"649,03";"1.170,94";PLT PUREGREEN;7134285639;SALDO Fatt.n. 20200040002849  del 11/08/2020 FORNITURA ENERGIA  ELETTRICA - LUGLIO 2020;21-09-2020;530;0;214;1;Spese correnti;3;Acquisto di beni e servizi;2;Acquisto di servizi;5;Utenze e canoni;4;Energia elettrica;21-09-2020;
1025;1;0;"83,07";"188,91";PLT PUREGREEN;7134285639;SALDO Fatt.n. 20200040002850  del 11/08/2020 FORNITURA ENERGIA ELETTRICA - LUGLIO 2020;21-09-2020;71;0;208;1;Spese correnti;3;Acquisto di beni e servizi;2;Acquisto di servizi;5;Utenze e canoni;4;Energia elettrica;21-09-2020;
1025;2;0;"105,84";"188,91";PLT PUREGREEN;7134285639;SALDO Fatt.n. 20200040003289  del 11/09/2020 FORNITURA ENERGIA ELETTRICA MAGAZZINO: AGOSTO 2020;21-09-2020;71;0;208;1;Spese correnti;3;Acquisto di beni e servizi;2;Acquisto di servizi;5;Utenze e canoni;4;Energia elettrica;21-09-2020;
1026;1;0;"-389,84";"5.078,83";PLT PUREGREEN;7134285639;SALDO Fatt.n. 20200040003298  del 11/09/2020 FORNITURA ENERGIA ELETTRICA SCUOLE MEDIE/ELEM.: LUGLIO-AGOSTO 2020;21-09-2020;600;0;216;1;Spese correnti;3;Acquisto di beni e servizi;2;Acquisto di servizi;5;Utenze e canoni;4;Energia elettrica;21-09-2020;
1026;2;0;"-65,10";"5.078,83";PLT PUREGREEN;7134285639;SALDO Fatt.n. 20200040003300  del 11/09/2020 FORNITURA ENERGIA ELETTRICA SCUOLA LIEDOLO:LUGLIO-AGOSTO 2020;21-09-2020;600;0;216;1;Spese correnti;3;Acquisto di beni e servizi;2;Acquisto di servizi;5;Utenze e canoni;4;Energia elettrica;21-09-2020;
1026;3;0;"-57,62";"5.078,83";PLT PUREGREEN;7134285639;SALDO Fatt.n. 20200040003296  del 11/09/2020 FORNITURA ENERGIA ELETTRICA SCUOLE CA' RAINATI: LUGLIO-AGOSTO 2020;21-09-2020;600;0;216;1;Spese correnti;3;Acquisto di beni e servizi;2;Acquisto di servizi;5;Utenze e canoni;4;Energia elettrica;21-09-2020;
1026;4;0;"7,55";"5.078,83";PLT PUREGREEN;7134285639;SALDO Fatt.n. 20200040003287  del 11/09/2020 FORNITURA ENERGIA ELETTRICA IP:LUGLIO-AGOSTO 2020;21-09-2020;600;0;216;1;Spese correnti;3;Acquisto di beni e servizi;2;Acquisto di servizi;5;Utenze e canoni;4;Energia elettrica;21-09-2020;
1026;5;0;"278,52";"5.078,83";PLT PUREGREEN;7134285639;SALDO Fatt.n. 20200040002848  del 11/08/2020 FORNITURA ENERGIA ELETTRICA - LUGLIO 2020;21-09-2020;600;0;216;1;Spese correnti;3;Acquisto di beni e servizi;2;Acquisto di servizi;5;Utenze e canoni;4;Energia elettrica;21-09-2020;
1026;6;0;"5.305,32";"5.078,83";PLT PUREGREEN;7134285639;SALDO Fatt.n. 20200040003292  del 11/09/2020 FORNITURA ENERGIA ELETTRICA IP: LUGLIO-AGOSTO 2020;21-09-2020;600;0;216;1;Spese correnti;3;Acquisto di beni e servizi;2;Acquisto di servizi;5;Utenze e canoni;4;Energia elettrica;21-09-2020;
1027;1;0;"181,03";"181,03";OMESSO NOMINATIVO NEL RISPETTO DELLA NORMATIVA SULLA PROTEZIONE DATI PERSONALI; ;FATTURA ALTO TREVIGIANO SERVIZI N. 61202000241724 DEL 25/08/2020 .;21-09-2020;576;0;90;1;Spese correnti;4;Trasferimenti correnti;2;Trasferimenti correnti a Famiglie;2;Interventi assistenziali;999;Altri assegni e sussidi assistenziali;21-09-2020;
1028;1;0;"567,30";"567,30";SICURITALIA IVRI S.P.A.;Z3827208DE;SALDO Fatt.n. 9117010522  del 14/09/2020 SERVIZI ISPETTIVI ED. COMUNALI - SETTEMBRE 2020;21-09-2020;252;0;170;1;Spese correnti;3;Acquisto di beni e servizi;2;Acquisto di servizi;5;Utenze e canoni;999;Utenze e canoni per altri servizi n.a.c.;21-09-2020;
1029;1;0;"10,86";"10,86";ENEL DISTRIBUZIONE S.P.A.;7134285639;SALDO Fatt.n. 0000920900018413  del 17/08/2020 ENERGIA ELETTRICA CONGUAGLIO: LUGLIO-DIC. 2019;21-09-2020;600;0;216;1;Spese correnti;3;Acquisto di beni e servizi;2;Acquisto di servizi;5;Utenze e canoni;4;Energia elettrica;21-09-2020;
1030;1;0;"1.112,10";"1.112,10";NOIGROUP Coop. Soc. a R.L.;ZDE2A28443;"SALDO Fatt.n. 584  del 31/08/2020 APERTURA, CHIUSURA MUSEO MULTIMEDIALE";21-09-2020;303;0;490;1;Spese correnti;3;Acquisto di beni e servizi;2;Acquisto di servizi;99;Altri servizi;999;Altri servizi diversi n.a.c.;21-09-2020;
1031;1;0;"1.440,00";"1.440,00";NOIGROUP Coop. Soc. a R.L.;Z5F268727B;SALDO Fatt.n. 582  del 31/08/2020 GESTIONE BIBLIOTECA - AGOSTO 2020;21-09-2020;302;1;553;1;Spese correnti;3;Acquisto di beni e servizi;2;Acquisto di servizi;16;Servizi amministrativi;999;Altre spese per servizi amministrativi;21-09-2020;
1032;1;0;"73,20";"73,20";ZONTA FRANCO;Z4F2DF29AE;SALDO Fatt.n. FPA 2/20  del 08/09/2020 RIPARAZIONE TAGLIAERBA;21-09-2020;589;1;261;1;Spese correnti;3;Acquisto di beni e servizi;2;Acquisto di servizi;9;Manutenzione ordinaria e riparazioni;5;Manutenzione ordinaria e riparazioni di attrezzature;21-09-2020;
1033;1;0;"2.000,00";"2.000,00";CITTON GIANNANTONIO & C. SNC;ZBC2DC240E;ACCONTO Fatt.n. 000000551P  del 28/08/2020 FORNITURA MATERIALE PER PROTEZIONE CIVILE;21-09-2020;743;2;237;2;Spese in conto capitale;2;Investimenti fissi lordi e acquisto di terreni;1;Beni materiali;6;Macchine per ufficio;1;Macchine per ufficio;21-09-2020;
1034;1;0;"2.000,00";"2.000,00";CITTON GIANNANTONIO & C. SNC;ZBC2DC240E;ACCONTO Fatt.n. 000000551P  del 28/08/2020 FORNITURA MATERIALE PER PROTEZIONE CIVILE;21-09-2020;743;3;238;2;Spese in conto capitale;2;Investimenti fissi lordi e acquisto di terreni;1;Beni materiali;6;Macchine per ufficio;1;Macchine per ufficio;21-09-2020;
1035;1;0;"123,37";"123,37";CITTON GIANNANTONIO & C. SNC;ZBC2DC240E;SALDO Fatt.n. 000000551P  del 28/08/2020 FORNITURA MATERIALE PER PROTEZIONE CIVILE;21-09-2020;591;0;239;1;Spese correnti;3;Acquisto di beni e servizi;1;Acquisto di beni;2;Altri beni di consumo;3;Equipaggiamento;21-09-2020;
1036;1;0;"3.416,00";"3.416,00";IDEA GIARDINO SNC;Z192CEDA04;SALDO Fatt.n. 46  del 31/08/2020 MANUTENZIONE AREE VERDI;21-09-2020;512;0;229;1;Spese correnti;3;Acquisto di beni e servizi;2;Acquisto di servizi;99;Altri servizi;9;Acquisto di sevizi per verde e arredo urbano;21-09-2020;
1037;1;0;"3.618,89";"3.618,89";TERMOIDRAULICA SERRAGLIO S.A.S. DI S. SERRAGLIO & C.;Z54291A26B;SALDO Fatt.n. 34  del 07/09/2020 RIFACIMENTO CIRCUITI TERMICO SCUOLE;21-09-2020;1008;3;542;2;Spese in conto capitale;2;Investimenti fissi lordi e acquisto di terreni;1;Beni materiali;9;Beni immobili;12;Infrastrutture stradali;21-09-2020;
1038;1;0;"6.527,00";"6.527,00";1 STOP s.r.l.;Z872D0EBB4;SALDO Fatt.n. 2020060000001  del 31/08/2020 ALLESTIMENTO AUTO PER PROTEZIONE CIVILE;21-09-2020;1076;0;169;2;Spese in conto capitale;2;Investimenti fissi lordi e acquisto di terreni;1;Beni materiali;1;"Mezzi di trasporto ad uso civile, di sicurezza e ordine pubblico";1;Mezzi di trasporto stradali;21-09-2020;
1039;1;0;"1.550,42";"1.550,42";A.S. DI ANDREATTA GIUSEPPE & C. S.R.L.;Z162D6230A;SALDO Fatt.n. 590  del 31/08/2020 MANUTENZIONE EDIFICI COMUNALI E IP;21-09-2020;601;0;191;1;Spese correnti;3;Acquisto di beni e servizi;2;Acquisto di servizi;15;Contratti di servizio pubblico;15;Contratti di servizio per l'illuminazione pubblica;21-09-2020;
1040;1;0;"405,20";"405,20";POSTE ITALIANE SPA - PROVENTI POLO LOGISTICO;ZC42B68711;SALDO Fatt.n. 1020247647  del 08/09/2020 SPESE POSTALI  - AGOSTO 2020;21-09-2020;26;0;220;1;Spese correnti;3;Acquisto di beni e servizi;2;Acquisto di servizi;16;Servizi amministrativi;2;Spese postali;21-09-2020;
1041;1;0;"236,25";"236,25";KIRIKU' SOCIETA' COOPERATIVA SOCIALE ONLUS;Z0E2BFC1F7;SALDO Fatt.n. 850  del 08/09/2020 SPESE PER ACCOMPAGNAMENTO MINORE: MARZO-GIUGNO-LUGLIO 2020;21-09-2020;559;0;57;1;Spese correnti;3;Acquisto di beni e servizi;2;Acquisto di servizi;99;Altri servizi;999;Altri servizi diversi n.a.c.;21-09-2020;
1042;1;0;"602,68";"602,68";IL GONFALONE DI FAGGIONATO ROBERTO;Z3C2E3E93E;SALDO Fatt.n. FPA 556/20  del 11/09/2020 ACQUISTO BANDIERE PER EDIFICI COMUNALI;21-09-2020;234;0;287;1;Spese correnti;3;Acquisto di beni e servizi;1;Acquisto di beni;2;Altri beni di consumo;9;Beni per attività di rappresentanza;21-09-2020;
1043;1;0;"200,00";"200,00";SONDA COOPERATIVA SOCIALE ONLUS; ;SALDO Fatt.n. 279/PA/2020  del 31/08/2020 PRESTAZIONI SOCIALI - AGOSTO 2020;21-09-2020;576;0;84;1;Spese correnti;4;Trasferimenti correnti;2;Trasferimenti correnti a Famiglie;2;Interventi assistenziali;999;Altri assegni e sussidi assistenziali;21-09-2020;
1044;1;0;"312,80";"312,80";GAJON JENNY;Z8D2DC66CE;SALDO Fatt.n. 144  del 14/09/2020 RILEGATURE STATI CIVILI;21-09-2020;34;3;233;1;Spese correnti;3;Acquisto di beni e servizi;2;Acquisto di servizi;16;Servizi amministrativi;999;Altre spese per servizi amministrativi;21-09-2020;
1045;1;0;"3.640,00";"3.640,00";SARTOR ROBERTO;ZD2295E93F;SALDO Fatt.n. FATTPA 13_20  del 12/09/2020 INCARICO ESTERNO;21-09-2020;881;1;381;2;Spese in conto capitale;2;Investimenti fissi lordi e acquisto di terreni;3;Beni immateriali;5;Incarichi professionali per la realizzazione di investimenti;1;Incarichi professionali per la realizzazione di investimenti;21-09-2020;
1046;1;0;"900,00";"900,00";ASSOCIAZIONE COMUNI MARCA TREVIGIANA; ;IMPEGNO E LIQUIDAZIONE QUOTE PROGETTAZIONE BANDO SERVIZIO CIVILE UNIVERSALE 2020 ALLASSOCIAZIONE COMUNI MARCA TREVIGIANA.;23-09-2020;51;1;306;1;Spese correnti;3;Acquisto di beni e servizi;2;Acquisto di servizi;99;Altri servizi;3;Quote di associazioni;23-09-2020;
1047;1;0;"3.063,19";"3.063,19";BATTAGIN IMPIANTI SRL;Z722CD9BD2;ACCONTO Fatt.n. 208/20  del 31/07/2020 FORNITURA MATERIALE E LAVORI AL MUSEO;23-09-2020;785;0;243;2;Spese in conto capitale;2;Investimenti fissi lordi e acquisto di terreni;1;Beni materiali;10;"Beni immobili di valore culturale, storico ed artistico";8;"Musei, teatri e biblioteche di valore culturale, storico ed artistico";23-09-2020;
1048;1;0;"1.170,21";"1.170,21";BATTAGIN IMPIANTI SRL;Z722CD9BD2;SALDO Fatt.n. 208/20  del 31/07/2020 FORNITURA MATERIALE E LAVORI AL MUSEO;23-09-2020;785;0;145;2;Spese in conto capitale;2;Investimenti fissi lordi e acquisto di terreni;1;Beni materiali;10;"Beni immobili di valore culturale, storico ed artistico";8;"Musei, teatri e biblioteche di valore culturale, storico ed artistico";23-09-2020;
1049;1;0;"27.294,68";"27.294,68";L.M. COSTRUZIONI GENERALI SRL;829888588B;SALDO Fatt.n. 2020     9/E  del 16/09/2020 MANUTENZIONE MARCIAPIEDI;23-09-2020;1007;4;617;2;Spese in conto capitale;2;Investimenti fissi lordi e acquisto di terreni;1;Beni materiali;9;Beni immobili;12;Infrastrutture stradali;23-09-2020;
1050;1;0;"128.175,28";"128.175,28";COSTRUZIONI VIRAGO S.N.C.;7962522106;ACCONTO Fatt.n. 7/PA  del 21/09/2020 ADEGUAMENTO SISMICO SCUOLE  - 4 SAL;23-09-2020;779;0;451;2;Spese in conto capitale;2;Investimenti fissi lordi e acquisto di terreni;1;Beni materiali;9;Beni immobili;3;Fabbricati ad uso scolastico;23-09-2020;
1051;1;0;"35.394,72";"35.394,72";COSTRUZIONI VIRAGO S.N.C.;7962522106;SALDO Fatt.n. 7/PA  del 21/09/2020 ADEGUAMENTO SISMICO SCUOLE  - 4 SAL;23-09-2020;779;0;288;2;Spese in conto capitale;2;Investimenti fissi lordi e acquisto di terreni;1;Beni materiali;9;Beni immobili;3;Fabbricati ad uso scolastico;23-09-2020;
1054;1;0;"117,22";"117,22";OMESSO NOMINATIVO NEL RISPETTO DELLA NORMATIVA SULLA PROTEZIONE DATI PERSONALI; ;FATTURA CASA DI RIPOSO AITA N. 334/B DEL 03/09/2020 PASTI MESE AGOSTO 2020.;23-09-2020;576;0;90;1;Spese correnti;4;Trasferimenti correnti;2;Trasferimenti correnti a Famiglie;2;Interventi assistenziali;999;Altri assegni e sussidi assistenziali;23-09-2020;
1055;1;0;"312,00";"312,00";GAZZOLA GIANANTONIO;ZBF2DF3733;SALDO Fatt.n. 19/2020  del 25/08/2020 AFFIDAMENTO COLLAUDO ANNUALE PALCO COMUNALE;24-09-2020;333;2;259;1;Spese correnti;3;Acquisto di beni e servizi;2;Acquisto di servizi;11;Prestazioni professionali e specialistiche;999;Altre prestazioni professionali e specialistiche n.a.c.;24-09-2020;
1056;1;0;"1.354,46";"1.354,46";KYOCERA DOCUMENT SOLUTIONS ITALIA S.P.A.;ZF02648E30;SALDO Fatt.n. 1010630361  del 25/08/2020 FOTOCOPIATRICI 29 L3 - 36 MESI;24-09-2020;34;0;519;1;Spese correnti;3;Acquisto di beni e servizi;2;Acquisto di servizi;5;Utenze e canoni;999;Utenze e canoni per altri servizi n.a.c.;24-09-2020;
1057;1;0;"24,40";"169,34";MyO S.P.A.;Z202DDB724;SALDO Fatt.n. 2040/200022170  del 04/09/2020 CARTELLE PER ELEZIONI;24-09-2020;9;2;246;1;Spese correnti;3;Acquisto di beni e servizi;1;Acquisto di beni;2;Altri beni di consumo;10;Beni per consultazioni elettorali;24-09-2020;
1057;2;0;"144,94";"169,34";MyO S.P.A.;Z202DDB724;SALDO Fatt.n. 2040/200020179  del 25/08/2020 STAMPATI PER ELETTORALE;24-09-2020;9;2;246;1;Spese correnti;3;Acquisto di beni e servizi;1;Acquisto di beni;2;Altri beni di consumo;10;Beni per consultazioni elettorali;24-09-2020;
1058;1;0;"85,25";"85,25";SUPERMERCATO FACCHIN DI FACCHIN A. & S.a.S.; ;SALDO Fatt.n. FPA 24/20  del 31/08/2020 ACQUISTO BENI PER EMERGENZA ALIMENTARE;24-09-2020;563;0;127;1;Spese correnti;3;Acquisto di beni e servizi;1;Acquisto di beni;2;Altri beni di consumo;11;Generi alimentari;24-09-2020;
1059;1;0;"1.041,60";"1.041,60";KIRIKU' SOCIETA' COOPERATIVA SOCIALE ONLUS;ZFA2BFBEE7;SALDO Fatt.n. 829  del 31/08/2020 EDUCATIVA DOMILIARE - AGOSTO 2020;24-09-2020;559;0;56;1;Spese correnti;3;Acquisto di beni e servizi;2;Acquisto di servizi;99;Altri servizi;999;Altri servizi diversi n.a.c.;24-09-2020;
1060;1;0;"28,06";"28,06";SICURITALIA IVRI S.P.A.;Z3827208DE;SALDO Fatt.n. 9117009785  del 31/08/2020 SERVIZI ISPETTIVI SCUOLE - AGOSTO 2020;24-09-2020;561;2;90;1;Spese correnti;3;Acquisto di beni e servizi;2;Acquisto di servizi;5;Utenze e canoni;999;Utenze e canoni per altri servizi n.a.c.;24-09-2020;
1061;1;0;"2.273,45";"2.273,45";GIACOBBO S.R.L.;ZC12B48288;SALDO Fatt.n. 75  del 31/08/2020 MANUTENZIONE STRADE STERRATE;24-09-2020;1007;0;678;2;Spese in conto capitale;2;Investimenti fissi lordi e acquisto di terreni;1;Beni materiali;9;Beni immobili;12;Infrastrutture stradali;24-09-2020;
1062;1;0;"10.158,09";"10.158,09";GIACOBBO S.R.L.;ZD82693FA8;SALDO Fatt.n. 74  del 31/08/2020 MANUTENZIONE STRADE STERRATE;24-09-2020;1007;0;573;2;Spese in conto capitale;2;Investimenti fissi lordi e acquisto di terreni;1;Beni materiali;9;Beni immobili;12;Infrastrutture stradali;24-09-2020;
1063;1;0;"450,20";"450,20";Farmacie Piu' SAS - Carinatese; ;SALDO Fatt.n. 34K  del 01/09/2020 BENI PER EMERGENZA ALIMENTARE;24-09-2020;563;0;125;1;Spese correnti;3;Acquisto di beni e servizi;1;Acquisto di beni;2;Altri beni di consumo;11;Generi alimentari;24-09-2020;
1064;1;0;"162,59";"162,59";BELLNET INTERNATIONAL S.R.L.;Z752BFBD5F;SALDO Fatt.n. FATTPA 1943_20  del 31/08/2020 TRAFFICO TELEFONICO;24-09-2020;34;0;58;1;Spese correnti;3;Acquisto di beni e servizi;2;Acquisto di servizi;5;Utenze e canoni;1;Telefonia fissa;24-09-2020;
1065;1;0;"400,00";"400,00";DE DOMENEGHI MASSIMILIANO;Z582DF6EC7;SALDO Fatt.n. 12/2020  del 31/08/2020 REALIZZAZIONE VIDEO MUSEO MULTIMEDIALE;24-09-2020;333;2;257;1;Spese correnti;3;Acquisto di beni e servizi;2;Acquisto di servizi;11;Prestazioni professionali e specialistiche;999;Altre prestazioni professionali e specialistiche n.a.c.;24-09-2020;
1066;1;0;"1.674,00";"1.674,00";CASA DI RIPOSO 'AITA'; ;SALDO Fatt.n. 314/B  del 03/09/2020 PRESTAZIONI SOCIALI L.V. - AGOSTO 2020;24-09-2020;560;0;55;1;Spese correnti;3;Acquisto di beni e servizi;2;Acquisto di servizi;15;Contratti di servizio pubblico;8;Contratti di servizio di assistenza sociale residenziale e semiresidenziale;24-09-2020;
1067;1;0;"423,95";"423,95";SCHINDLER S.P.A.;Z2B2BBF164;SALDO Fatt.n. 349530094  del 28/08/2020 Canone di manutenzione per impianti elevatori - 01.07.2020-31.12.2020;24-09-2020;561;4;37;1;Spese correnti;3;Acquisto di beni e servizi;2;Acquisto di servizi;9;Manutenzione ordinaria e riparazioni;4;Manutenzione ordinaria e riparazioni di impianti e macchinari;24-09-2020;
1068;1;0;"530,70";"530,70";ELA SISTEMI ELETTRONICI S.R.L.;Z062E0BAA0;SALDO Fatt.n. 5/PA  del 31/08/2020 MANUTENZIONE IMPIANTO ALLARME;24-09-2020;313;1;263;1;Spese correnti;3;Acquisto di beni e servizi;2;Acquisto di servizi;9;Manutenzione ordinaria e riparazioni;4;Manutenzione ordinaria e riparazioni di impianti e macchinari;24-09-2020;
1069;1;0;"207,40";"207,40";ELA SISTEMI ELETTRONICI S.R.L.;Z012E0F02F;ACCONTO Fatt.n. 6/PA  del 31/08/2020 FORNITURA BATTERIE PER IMP. ANTINCENDIO;24-09-2020;313;1;273;1;Spese correnti;3;Acquisto di beni e servizi;2;Acquisto di servizi;9;Manutenzione ordinaria e riparazioni;8;Manutenzione ordinaria e riparazioni di beni immobili;24-09-2020;
1070;1;0;"219,60";"219,60";ELA SISTEMI ELETTRONICI S.R.L.;Z012E0F02F;SALDO Fatt.n. 6/PA  del 31/08/2020 FORNITURA BATTERIE PER IMP. ANTINCENDIO;24-09-2020;310;1;272;1;Spese correnti;3;Acquisto di beni e servizi;2;Acquisto di servizi;9;Manutenzione ordinaria e riparazioni;8;Manutenzione ordinaria e riparazioni di beni immobili;24-09-2020;
1071;1;0;"44,95";"598,59";PLT PUREGREEN;7134285639;SALDO Fatt.n. 20200040002851  del 11/08/2020 FORNITURA ENERGIA ELETTRICA - LUGLIO 2020;25-09-2020;600;0;216;1;Spese correnti;3;Acquisto di beni e servizi;2;Acquisto di servizi;5;Utenze e canoni;4;Energia elettrica;25-09-2020;
1071;2;0;"49,82";"598,59";PLT PUREGREEN;7134285639;SALDO Fatt.n. 20200040003299  del 11/09/2020 FORNITURA ENERGIA ELETTRICA CIMITERO-AGOSTO 2020;25-09-2020;600;0;216;1;Spese correnti;3;Acquisto di beni e servizi;2;Acquisto di servizi;5;Utenze e canoni;4;Energia elettrica;25-09-2020;
1071;3;0;"51,35";"598,59";PLT PUREGREEN;7134285639;SALDO Fatt.n. 20200040002860  del 11/08/2020 FORNITURA ENERGIA ELETTRICA - LUGLIO 2020;25-09-2020;600;0;216;1;Spese correnti;3;Acquisto di beni e servizi;2;Acquisto di servizi;5;Utenze e canoni;4;Energia elettrica;25-09-2020;
1071;4;0;"52,25";"598,59";PLT PUREGREEN;7134285639;SALDO Fatt.n. 20200040003297  del 11/09/2020 FORNITURA ENERGIA ELETTRICA CIMITERO-AGOSTO 2020;25-09-2020;600;0;216;1;Spese correnti;3;Acquisto di beni e servizi;2;Acquisto di servizi;5;Utenze e canoni;4;Energia elettrica;25-09-2020;
1071;5;0;"72,91";"598,59";PLT PUREGREEN;7134285639;SALDO Fatt.n. 20200040002858  del 11/08/2020 FORNITURA ENERGIA ELETTRICA - LUGLIO 2020;25-09-2020;600;0;216;1;Spese correnti;3;Acquisto di beni e servizi;2;Acquisto di servizi;5;Utenze e canoni;4;Energia elettrica;25-09-2020;
1071;6;0;"96,04";"598,59";PLT PUREGREEN;7134285639;SALDO Fatt.n. 20200040003290  del 11/09/2020 FORNITURA ENERGIA ELETTRICA CIMITERO - AGOSTO 2020;25-09-2020;600;0;216;1;Spese correnti;3;Acquisto di beni e servizi;2;Acquisto di servizi;5;Utenze e canoni;4;Energia elettrica;25-09-2020;
1071;7;0;"113,05";"598,59";PLT PUREGREEN;7134285639;SALDO Fatt.n. 20200040002855  del 11/08/2020 FORNITURA ENERGIA ELETTRICA - LUGLIO 2020;25-09-2020;600;0;216;1;Spese correnti;3;Acquisto di beni e servizi;2;Acquisto di servizi;5;Utenze e canoni;4;Energia elettrica;25-09-2020;
1071;8;0;"118,22";"598,59";PLT PUREGREEN;7134285639;SALDO Fatt.n. 20200040003294  del 11/09/2020 FORNITURA ENERGIA ELETTRICA CIMITERO-AGOSTO 2020;25-09-2020;600;0;216;1;Spese correnti;3;Acquisto di beni e servizi;2;Acquisto di servizi;5;Utenze e canoni;4;Energia elettrica;25-09-2020;
1072;1;0;"91,24";"91,24";OMESSO NOMINATIVO NEL RISPETTO DELLA NORMATIVA SULLA PROTEZIONE DATI PERSONALI; ;FORNITURA PASTI A DOMICILIO CASA DI RIPOSO AITA  - ACCONTO SU FATT. N. 335/B DEL 03/09/2020 PASTI MESE DI AGOSTO 2020.;29-09-2020;576;0;139;1;Spese correnti;4;Trasferimenti correnti;2;Trasferimenti correnti a Famiglie;2;Interventi assistenziali;999;Altri assegni e sussidi assistenziali;29-09-2020;
1073;1;0;"225,86";"225,86";OMESSO NOMINATIVO NEL RISPETTO DELLA NORMATIVA SULLA PROTEZIONE DATI PERSONALI; ;FORNITURA PASTI A DOMICILIO CASA DI RIPOSO AITA  - SALDO FATT. N. 335/B DEL 03/09/2020 PASTI MESE DI AGOSTO 2020.;29-09-2020;576;0;316;1;Spese correnti;4;Trasferimenti correnti;2;Trasferimenti correnti a Famiglie;2;Interventi assistenziali;999;Altri assegni e sussidi assistenziali;29-09-2020;
